Workbook

Sheet összes (2)
B1: Alapadatok | F1: Értékelési adatok | Q1: Technikai adatok | AC1: Tematika | AF1: Oktatással kapcsolatos adatok
B2: Szervezet | C2: Szerző(k) | D2: Tananyag címe: | F2: Résztvevők száma | G2: Hallgatók száma | H2: Kreditek száma | I2: hallagatók száma | J2: MSC | K2: BSc | L2: Nyelvek száma | M2: Interdiszciplináris | N2: IT | O2: A4 | P2: PONTSZÁM | Q2: IT | R2: formátum | S2: karakter | U2: fejezet | V2: Képek | W2: Interaktív | X2: Animáció | Y2: Videó | Z2: Kísérletek | AA2: IT segítség | AC2: Tematika | AD2: Fejlesztés indokoltsága | AF2: Szak MSc | AG2: Szakirány MSc | AH2: Tárgy MSc (KÓD) | AI2: MSc Hallgatók száma | AJ2: MSc Kreditek száma | AK2: Nyelve: | AL2: Szak BSC | AM2: Szakirány BSC | AN2: Tárgy BSC (KÓD) | AO2: BSc Hallgotók száma | AP2: BSc Kreditek száma | AQ2: Nyelve: | AR2: Kurzusok száma
A3: 1 | B3: BME FI | C3: Vankó Péter | D3: Kísérleti fizika 1. | E3: Kísérleti Fizika | F3: 1 | G3: =2*AI3+AO3 -> 15 | H3: =2*AJ3+AP3 -> 10 | J3: 1 | K3: 0 | L3: 1 | M3: 0 | N3: =V3*3000+W3*10000+Y3*10000+X3*8000 -> 700,000 | O3: =S3/1800 -> 222 | P3: =N3+F3*400000+H3*10000+G3*1000 -> 1,215,000 | Q3: szöveg: LaTeX, videók: wikimédia | R3: .pdf + wikimédia (videók) | S3: 400,000 | U3: 19 | V3: 200 | Y3: 10 | AC3: Tömegpont kinematikája;Tömegpont dinamikája;Mozgások leírása különböző vonatkoztatási rendszerekben;Munka és energia;Pontrendszerek mechanikája;Merev testek mozgása;Szilárd testek alakváltozása;Hidrosztatika;Felületi jelenségek;Folyadékok és gázok áramlása;Szabad rezgések;Kényszerrezgés, rezonancia;Rezgések összetevése és felbontása, csatolt rezgések;Hullámok;Energiaterjedés mechanikai hullámokban;Visszaverődés és törés;Interferencia, elhajlás, állóhullámok;Doppler-effektus;Hang és fény, hangszerek, ultrahang; | AD3: A Kísérleti fizika tárgyak alapozzák meg a fizika BSc hallgatók természettudományos világképét és gondolkodásmódját, ezért kiemelten fontosnak tartjuk az egységes szerkezetű, korszerű tananyag elkészítést. Az új tananyag elektronikus formában külső és belső hivatkozásokkal, színes ábrákkal, képekkel és videókkal segíti a tanulást, ugyanakkor a vizsgára való készüléshez a LaTeX szerkesztésnek köszönhetően a képletekkel és ábrákkal együtt tipográfiailag is szép formában kinyomtatható. | AH3: Atom és molekulafizika BMETE15MF02 | AJ3: 3 | AK3: 1 | AL3: Fizika | AN3: Kísérleti fizika 1. BMETE13AF02 | AO3: 15 | AP3: 4 | AQ3: 1
A4: =A3+1 -> 2 | B4: BME FI | C4: Koppa Pál | D4: Kísérleti fizika 2. | E4: Kísérleti Fizika | F4: 1 | G4: =2*AI4+AO4 -> 15 | H4: =2*AJ4+AP4 -> 4 | L4: 1 | N4: =V4*3000+W4*10000+Y4*10000+X4*8000 -> 700,000 | O4: =S4/1800 -> 278 | P4: =N4+F4*400000+H4*10000+G4*1000 -> 1,155,000 | Q4: szöveg: LaTeX, videók: wikimédia | R4: .pdf + wikimédia (videók) | S4: 500,000 | U4: 12 | V4: 200 | Y4: 10 | AC4: Elektrosztatika, stacionáris áramok, magnetosztatika, indukció, eltolási áram. Maxwell-egyenletek vákuumban és anyagban. Elektromágneses rezgések és hullámok. Fénytörés, fényvisszaverődés. Fényhullámok interferenciája és diffrakciója. A speciális relativitáselmélet. | AD4: A Kísérleti fizika tárgyak alapozzák meg a fizika BSc hallgatók természettudományos világképét és gondolkodásmódját, ezért kiemelten fontosnak tartjuk az egységes szerkezetű, korszerű tananyag elkészítést. Az új tananyag elektronikus formában külső és belső hivatkozásokkal, színes ábrákkal, képekkel és videókkal segíti a tanulást, ugyanakkor a vizsgára való készüléshez a LaTeX szerkesztésnek köszönhetően a képletekkel és ábrákkal együtt tipográfiailag is szép formában kinyomtatható. | AK4: 1 | AL4: Fizika | AN4: Kísérleti fizika 1. BMETE13AF02 | AO4: 15 | AP4: 4 | AQ4: 1
A5: =A4+1 -> 3 | B5: BME FI | C5: Újsághy Orsolya | D5: Kísérleti fizika 3. | E5: Kísérleti Fizika | F5: 1 | G5: 15 | H5: 4 | L5: 1 | N5: 700,000 | O5: 294 | P5: 1,155,000 | Q5: szöveg: LaTeX, videók: wikimédia | R5: .pdf + wikimédia (videó | S5: 530,000 | U5: 25 | V5: 200 | Y5: 10 | AC5: Kinetikus gázelmélet: gáznyomás, hőmérséklet, belső energia, transzportfolyamatok, szabad úthossz közelítésben. Termodinamika: állapotjelzők, hőmérsékletskálák, I. és II. főtétel, entrópia, III. főtétel, termodinamikai potenciálok, a termodinamikai egyensúly feltételei, állapotegyenletek, Maxwell-relációk, Euler egyenletek, Gibbs-Duham reláció. Fázisátalakulások: Clausius-Clapeyron egyenlet, első- és másodrendű fázisátalakulások sajátságai, többkomponensű rendszerek, kémiai reakciók. A kvantummechanika alapjai: hőmérsékleti sugárzás, fotoeffektus, Compton effektus, atommodellek, anyaghullámok, Schrödinger egyenlet és stacionárius megoldásai, alkalmazások. | AD5: A Kísérleti fizika tárgyak alapozzák meg a fizika BSc hallgatók természettudományos világképét és gondolkodásmódját, ezért kiemelten fontosnak tartjuk az egységes szerkezetű, korszerű tananyag elkészítést. Az új tananyag elektronikus formában külső és belső hivatkozásokkal, színes ábrákkal, képekkel és videókkal segíti a tanulást, ugyanakkor a vizsgára való készüléshez a LaTeX szerkesztésnek köszönhetően a képletekkel és ábrákkal együtt tipográfiailag is szép formában kinyomtatható. | AK5: 1 | AL5: Fizika | AN5: Kísérleti fizika 1. BMETE13AF02 | AO5: 15 | AP5: 4 | AQ5: 1
A6: 4 | B6: BME FI | C6: Kertész János, Orosz László | D6: Elméleti fizika 1. | E6: Elméleti fizika | F6: 2 | G6: 60 | H6: 6 | L6: 1 | N6: 135,000 | O6: 222 | P6: 1,055,000 | Q6: LaTex | R6: .pdf+wikimédia | S6: 400,000 | U6: 15 | V6: 45 | AC6: Anyagi pont newtoni mechanikája, impulzus, impulzusmomentum, konzervativ erők, energia. Pontrendszerek mechanikája, a 10 mozgásintegrál. Kényszerek, általánosított koordináták, a mechanika elvei. Merev testek. Folytonos közegek. rugalmas testek mechanikája, a feszültségtenzor. Hullámegyenlet. Ideális és viszkózus folyadékok. Maxwell egyenletek. Szigetelők, vezetők (stacionárius) áramok, Sztatikus elektromos és mágneses tér. Skalár- és vektorpotenciál. Időfüggő elektromos és mágneses tér. Eletromágneses hullámok. Eletromágneses tér anyagi közegben. Az elektromágneses tér energiája és impulzusa. A speciális relativításelmélet alapjai. | AD6: A hazai gyakorlatban teljesen új a kétszintű képzéssel bevezetett elméleti fizika két szemeszterben leadott változata, ami az alkalmazott fizika BSc szakirány hallgatói számára foglalja össze tömören négy elméleti fizika alaptantárgy legfontosabb, minden fizikus számára szükséges ismereteit. Ehhez a tárgyhoz nélkülözhetetlen az írásos segédanyag, amit a pályázat keretében szeretnénk elkészíteni és elektronikus formában a hallgatók rendelkezésére bocsátani. Megítélésünk szerint ez a tananyag nemcsak a hazai fizikusképzésben, hanem az elméleti fizika iránt érdeklődő műszaki és természettudományos szakok hallgatói számára is hasznos lesz. | AK6: 1 | AL6: Fizikus | AN6: Elméleti Fizika I. BMETE15AF06 | AO6: 60 | AP6: 6 | AQ6: 1
A7: 5 | B7: BME FI | C7: Kertész János, Orosz László, Szunyogh László | D7: Elméleti fizika 2. | E7: Elméleti fizika | F7: 3 | G7: 100 | H7: 6 | L7: 1 | N7: 135,000 | O7: 222 | P7: 1,495,000 | Q7: LaTex | R7: .pdf+wikimédia | S7: 400,000 | U7: 16 | V7: 45 | AC7: Mikro- és makroállapotok, zárt és kölcsönható rendszerek, egyensúly. Statisztikus fizikai entrópia, kapcsolat a termodinamikával. Különböző sokaságok és ekvivalenciájuk. Termodinamikai potenciálok, fluktuációk. Kölcsönható rendszerek, van der Waals egyenlet, fázisátalakulások, átlagtér elmélet. A kvantummechanika matematikai eszközei, Hilbert tér, operátorok. A mérés, sajátértékek, kommutátorok, határozatlansági relációk. Schrödinger egyenler, stacionárius eset, kötött és szabad állapotok. | AD7: A hazai gyakorlatban teljesen új a kétszintű képzéssel bevezetett elméleti fizika két szemeszterben leadott változata, ami az alkalmazott fizika BSc szakirány hallgatói számára foglalja össze tömören négy elméleti fizika alaptantárgy legfontosabb, minden fizikus számára szükséges ismereteit. Ehhez a tárgyhoz nélkülözhetetlen az írásos segédanyag, amit a pályázat keretében szeretnénk elkészíteni és elektronikus formában a hallgatók rendelkezésére bocsátani. Megítélésünk szerint ez a tananyag nemcsak a hazai fizikusképzésben, hanem az elméleti fizika iránt érdeklődő műszaki és természettudományos szakok hallgatói számára is hasznos lesz. | AK7: 1 | AL7: Fizikus | AN7: Elméleti Fizika II. BMETE15AF07 | AP7: 6 | AQ7: 1
A8: 6 | B8: BME FI | C8: Keszthelyi Tamás | D8: Mechanika | E8: Elméleti fizika | F8: 1 | G8: 120 | H8: 4 | L8: 1 | N8: 90,000 | O8: 222 | P8: 650,000 | Q8: LaTex | R8: .pdf+wikimédia | S8: 400,000 | U8: 12 | V8: 30 | AC8: Newton-axiómák, inerciarendszer. Mozgás gyorsuló rendszerben, tehetetlenségi erők. Mozgás egy dimenzióban, centrális erőtérben. Két-test probléma, bolygómozgás, részecskék szórása. Pontrendszerek mozgásegyenletei, és azok integráljai. Merev test mozgása, Euler-egyenletek. Virtuális munka elve, d'Alembert-elv. Kényszerfeltételek, Lagrange-féle első- és másodfajú egyenletek. Hamilton elv Kanonikus egyenletek, kanonikus transzformációk, Hamilton-Jacobi-egyenlet. Szimmetriák, Noether-tétel, mozgásállandók. Deformálható testek mechanikájának elemei. Relativisztikus mechanika. | AD8: Az Elméleti fizika tárgyak igen fontos szerepet töltenek be a fizikus szakirányon tanuló fizika BSc hallgatók képzésében, hiszen ezek a tárgyak alapozzák meg a későbbi szakmai ismeretek oktatását, valamint a hallgatók tudományos kutatási tevékenységét, legyen az elméleti vagy kísérleti orientáltságú. Ugyanakkor ezek a tantárgyak alapvetők a tudományos világkép, a fizikusi szemlélet kialakításában is. A klasszikusnak számító négy tantárgyhoz (elméleti mechanika, elektrodinamika és relativitáselmélet, kvantummechanika, statisztikus fizika) kapcsolódik az MSc-n kötelező atom- és molekulafizika. Ezekből a tantárgyakból egységes írásos tananyag nem áll rendelkezésre. Kiemelten fontosnak tartjuk, hogy az oktatók honlapjáról letölthető, egyes részterületekre vonatkozó, eltérő készültségi szintű oktatási segédanyagokból kiindulva, egységes szerkezetű, korszerű tananyag készüljön, az elektronikus formának köszönhetően külső és belső hivatkozásokkal, színes ábrákkal és képekkel. A készülő tananyag jelentőségét növeli, hogy nemcsak a tantárgyakból való felkészülést segíti valamennyi fizikusképzésben, hanem az MSC egyik szakirányán az elméleti fizika szigorlatra készülést is, illetve kiegészítő tananyagként szolgál azon hallgatók számára, akik az alkalmazott fizika szakirányon belül kevesebb elméleti fizika képzésben részesültek. | AK8: 1 | AL8: Fizikus | AN8: Mechanika BMETE13AF12 | AP8: 4 | AQ8: 1
A9: 7 | B9: BME FI | C9: Jakovác Antal | D9: Elektrodinamika és relativitáselmélet | E9: Elméleti fizika | F9: 1 | G9: 30 | H9: 4 | L9: 1 | N9: 150,000 | O9: 222 | P9: 620,000 | Q9: LaTex | R9: .pdf+wikimédia | S9: 400,000 | U9: 14 | V9: 50 | AC9: Bevezetés, történeti áttekintés, matematiaki alapfogalmak. Töltéseloszlások elektrosztatikája, elektrosztatikus tér energiája. Poisson egyenlet határfeltételekkel, kapacitás, tükörtöltések módszere. Görbevonalú koordinátarendszerek, gömbi- és hengerkoordináták. Multipólus kifejtés. Elektrosztatika anyag jelenlétében. Mágneses alapjelenségek, árameloszlás mágneses tere. Mágnesség anyag jelenlétében. Időfüggés az elektrodinamikában, indukció. Jelenségek vezetőkben, távíró egyenlet, kvázistacionárius közelítés, skin effektus. Elektromágneses energia és impulzus mérlegegyenlete. Homogén Maxwell-egyenletek megoldása, síkhullámok, csoport- és fázissebesség. Frekvenciafüggő permittivitás, törésmutató, abszorpció. Elektromágneses hullámterjedés határfeltételekkel, törés, hullámvezető. Inhomogén Maxwell-egyenletek megoldása, retardált és avanzsált Green-függvények. Dipól- és multipól sugárzások. Lienard-Wiechert potenciálok. Relativisztikus elektrodinamika. Relativisztikus Larmor-képlet, sugárzás szögeloszlása, spektruma, szinkrotronsugárzás. Elektromágneses hullámok szórása. Cherenkov- és átmeneti sugárzás. | AD9: Az Elméleti fizika tárgyak igen fontos szerepet töltenek be a fizikus szakirányon tanuló fizika BSc hallgatók képzésében, hiszen ezek a tárgyak alapozzák meg a későbbi szakmai ismeretek oktatását, valamint a hallgatók tudományos kutatási tevékenységét, legyen az elméleti vagy kísérleti orientáltságú. Ugyanakkor ezek a tantárgyak alapvetők a tudományos világkép, a fizikusi szemlélet kialakításában is. A klasszikusnak számító négy tantárgyhoz (elméleti mechanika, elektrodinamika és relativitáselmélet, kvantummechanika, statisztikus fizika) kapcsolódik az MSc-n kötelező atom- és molekulafizika. Ezekből a tantárgyakból egységes írásos tananyag nem áll rendelkezésre. Kiemelten fontosnak tartjuk, hogy az oktatók honlapjáról letölthető, egyes részterületekre vonatkozó, eltérő készültségi szintű oktatási segédanyagokból kiindulva, egységes szerkezetű, korszerű tananyag készüljön, az elektronikus formának köszönhetően külső és belső hivatkozásokkal, színes ábrákkal és képekkel. A készülő tananyag jelentőségét növeli, hogy nemcsak a tantárgyakból való felkészülést segíti valamennyi fizikusképzésben, hanem az MSC egyik szakirányán az elméleti fizika szigorlatra készülést is, illetve kiegészítő tananyagként szolgál azon hallgatók számára, akik az alkalmazott fizika szakirányon belül kevesebb elméleti fizika képzésben részesültek. | AK9: 1 | AL9: Fizikus | AN9: Elektrodinamika és relativitáselmélet BMETE13AF15 | AP9: 4 | AQ9: 1
A10: 8 | B10: BME FI | C10: Apagyi Barnabás, Szunyogh László | D10: Kvantummechanika | E10: Elméleti fizika | F10: 2 | G10: 50 | H10: 5 | L10: 1 | N10: 150,000 | O10: 222 | P10: 1,050,000 | Q10: LaTex | R10: .pdf+Wikimédia | S10: 400,000 | U10: 9 | V10: 50 | AC10: A klasszikus fizika érvényességének határai. Hullámmechanika. A kvantummechanika matematikai és fizikai alapjai. A fizikai mennyiségeket reprezentáló operátorok sajátértékei és sajátfüggvényei. Kötött állapotok. Hidrogénatom. Spin. Szórási állapotok. Mozgás elektromágneses térben. Relativisztikus kvantummechanika, Dirac egyenlet. Reprezentációelmélet | AD10: Az Elméleti fizika tárgyak igen fontos szerepet töltenek be a fizikus szakirányon tanuló fizika BSc hallgatók képzésében, hiszen ezek a tárgyak alapozzák meg a későbbi szakmai ismeretek oktatását, valamint a hallgatók tudományos kutatási tevékenységét, legyen az elméleti vagy kísérleti orientáltságú. Ugyanakkor ezek a tantárgyak alapvetők a tudományos világkép, a fizikusi szemlélet kialakításában is. A klasszikusnak számító négy tantárgyhoz (elméleti mechanika, elektrodinamika és relativitáselmélet, kvantummechanika, statisztikus fizika) kapcsolódik az MSc-n kötelező atom- és molekulafizika. Ezekből a tantárgyakból egységes írásos tananyag nem áll rendelkezésre. Kiemelten fontosnak tartjuk, hogy az oktatók honlapjáról letölthető, egyes részterületekre vonatkozó, eltérő készültségi szintű oktatási segédanyagokból kiindulva, egységes szerkezetű, korszerű tananyag készüljön, az elektronikus formának köszönhetően külső és belső hivatkozásokkal, színes ábrákkal és képekkel. A készülő tananyag jelentőségét növeli, hogy nemcsak a tantárgyakból való felkészülést segíti valamennyi fizikusképzésben, hanem az MSC egyik szakirányán az elméleti fizika szigorlatra készülést is, illetve kiegészítő tananyagként szolgál azon hallgatók számára, akik az alkalmazott fizika szakirányon belül kevesebb elméleti fizika képzésben részesültek. | AK10: 1 | AL10: Fizikus | AN10: Kvantummechanika BMETE15AF00 | AP10: 5 | AQ10: 1
A11: 9 | B11: BME FI | C11: Kertész János, Zaránd Gergely | D11: Statisztikus fizika | E11: Elméleti fizika | F11: 2 | G11: 200 | H11: 5 | L11: 1 | N11: 90,000 | O11: 222 | P11: 1,140,000 | Q11: LaTex | R11: .pdf+wikimédia | S11: 400,000 | U11: 15 | V11: 30 | AC11: A statisztikus fizika célkitűzése. Időskálák, egyensúly, irreverzibilitás. Mikro- és makroállapotok, normál rendszerek. Liouville- és Neumann egyenlet. Egyenlő valószínűségek elve, entrópia, kapcsolat a termodinamikával, sokaságok, ekvivalenciájuk. Termodinamikai potenciálok, fluktuációk, korrelációk. Ideális gázok, kvantumstatisztikák, klasszikus átmenet, Degenerált kvantumgázok, Bose-Einstein kondenzáció, fotongáz. Kvázirészecskék, fononok. szuperfolyékonyság, a Fermi-folyadék elmélet alapjai. Árnyékolás. Viriál sofejtés. Fázisátalakulások, van der Waals, Weiss, Landau elméletek. A fluktuációk szerepe, skálázás, univerzalitás, a renormálási csoport transzformáció alapgondolata. Időfüggő egyensúlyi korrelációk. Lineáris transzport, kereszteffektusok, lineáris válasz, fluktuáció,disszipáció tétel. Brown-mozgás, diffúzió, Langevin-egyenlet, Fokker-Planck egyenlet, Vezéregyenlet, Boltzmann-egyenlet, H-tétel, irreverzibilitási paradoxonok és feloldásuk. | AD11: Az Elméleti fizika tárgyak igen fontos szerepet töltenek be a fizikus szakirányon tanuló fizika BSc hallgatók képzésében, hiszen ezek a tárgyak alapozzák meg a későbbi szakmai ismeretek oktatását, valamint a hallgatók tudományos kutatási tevékenységét, legyen az elméleti vagy kísérleti orientáltságú. Ugyanakkor ezek a tantárgyak alapvetők a tudományos világkép, a fizikusi szemlélet kialakításában is. A klasszikusnak számító négy tantárgyhoz (elméleti mechanika, elektrodinamika és relativitáselmélet, kvantummechanika, statisztikus fizika) kapcsolódik az MSc-n kötelező atom- és molekulafizika. Ezekből a tantárgyakból egységes írásos tananyag nem áll rendelkezésre. Kiemelten fontosnak tartjuk, hogy az oktatók honlapjáról letölthető, egyes részterületekre vonatkozó, eltérő készültségi szintű oktatási segédanyagokból kiindulva, egységes szerkezetű, korszerű tananyag készüljön, az elektronikus formának köszönhetően külső és belső hivatkozásokkal, színes ábrákkal és képekkel. A készülő tananyag jelentőségét növeli, hogy nemcsak a tantárgyakból való felkészülést segíti valamennyi fizikusképzésben, hanem az MSC egyik szakirányán az elméleti fizika szigorlatra készülést is, illetve kiegészítő tananyagként szolgál azon hallgatók számára, akik az alkalmazott fizika szakirányon belül kevesebb elméleti fizika képzésben részesültek. | AK11: 1 | AL11: Fizikus | AN11: Statisztikus Fizika BMETE15AF04 | AP11: 5 | AQ11: 1
A12: 10 | B12: BME FI | C12: Kézsmárki István, Bácsi Ádám, Kanász Nagy Márton | D12: Szilárdtestfizika Példatár | E12: Elméleti fizika | F12: 3 | G12: 40 | H12: 2 | L12: 1 | N12: 150,000 | O12: 67 | P12: =N12+F12*400000+H12*10000+G12*1000 -> 1,410,000 | Q12: Wikimédia | R12: Wikimédia | S12: 120,000 | U12: 10 | V12: 50 | AC12: Szilárd testek, kristályok szimmetriái, Szerkezetmeghatározás, Szóráskísérletek, Rácsrezgések, Szilárd testek fajhője, Elektronok ; kvantummechanikai leírása: közel szabad elektron modell, sávszerkezet; szoros kötésű közelítés, Elektron transzport - Drude modell | AD12: Jelen pályázatban az Elméleti fizika példatár Szilárdtestfizika része készül el. A későbbiekben ezt tervezzük kiegészíteni, és egy egységes elméleti fizika példatárat létrehozni. A médiawiki formátum segíti a tananyag későbbi folyamatos fejlesztését és bővítését.A példatár egy-egy fejezete rövid elméleti öszefoglalóból, majd a feladatokból, a megoldást segítő ötletekből és a részletes megoldásból áll. A médiawiki formátum lehetővé teszi a feladatok tetszőleges csoportosítását, különböző foglalkozásokon való használatát és az egyéni gyakorlást is. | AK12: 1 | AL12: Fizika | AN12: Szilárdtestfizika gyakorlat BMETE11AF06 | AP12: 2 | AQ12: 1
A13: 11 | B13: BME FI | C13: Pipek János, Szunyogh László, Varga Imre, Hárs György, Dobos Gábor, Kocsányi László | D13: Fizika II | E13: Mérnöki fizika | F13: 3 | G13: 100 | H13: 0 | L13: 1 | N13: 680,000 | O13: 278 | P13: 1,980,000 | Q13: LaTex | R13: PDF | S13: 500,000 | U13: 2 | V13: 200 | X13: 10 | AC13: Elektromosságtan Az elektrosztatika alaptörvényei, Gauss törvény Elektromos tér szigetelőkben és vezetőkben Elektromos potenciál és feszültség Kondenzátorok, kapacitás, az elektromos tér energiája Stacionárius áramok, Ohm törvény Egyenáramú áramkörök, Kirchoff-törvények Mágneses tér, Lorentz erő Biot-Savart-törvény, áram mágneses tere Mágneses fluxus, Ampere törvénye Lenz-törvény, indukció, váltóáramú áramkörök Maxwell egyenletek rendszere, elektromágneses hullámok Optika Geometriai optika Hullámoptika | AD13: A műszaki tudományok természettudományos alapjául szolgáló fizika oktatása a BME mérnöki karain modulrendszerben történik. A Fizika 1 tartalmazza a mechanikát és a hőtant, a Fizika 2 az elektromosságtant és az optikát, a Fizika 3 pedig a modern fizikát, ezen belül a kvantummechanikát és a szilárdtestfizikát, illetve a kitekintést. A helyzetet bonyolítja, hogy a különböző karok, illetve szakok eltérő matematikai eszköztárral és különböző mélységben igénylik a fizika oktatását, továbbá idegennyelvű, angol és német változatokra is szükség van. A komplex követelményeknek eleget tevő, elkészítendő modern elektronikus tananyag figyelemfelkeltő, színes ábrákkal, esetenként mozgóképekkel, valamint a megértést könnyítő kereszthivatkozásokkal segíti majd elő a többezres hallgatóság tanulását és vizsgára való felkészülését. A szakmai ismeretek közvetítése mellett fontos célunk a mérnökhallgatók modern természettudományos szemléletének fejlesztése is. | AK13: 1 | AL13: Gépészmérnöki, Mechatronikai, Terméktervezői szakok Bsc Energetikai mérnök szak Bsc Közlekedésmérnöki szak Bsc Járműgépész szak | AN13: Fizika2 BMETE11AX02 Fizika 2 BMETE11AX04, Fizika 2 BMETE11AX04 Fizika A2 BMETE15AX02, Fizika A2 BMETE15AX02 Fizika A2E BMETE15AX15 Fizika A2K BMETE15AX09 Fizika A2J BMETE15AX16 | AQ13: 1
A14: 12 | B14: BME FI | C14: Richter Péter, Sólyom András, Kugler Sándor, Kocsányi László | D14: Fizika III | E14: Mérnöki fizika | F14: 1 | G14: 30 | H14: 0 | L14: 3 | N14: 600,000 | O14: 278 | P14: 1,030,000 | Q14: Adobe Acrobat Professional | R14: PDF, tartalomjegyzékkel | S14: 500,000 | U14: 2 | V14: 200 | AC14: Kvantummechanika Kísérleti előzmények Időfüggetlen Schrödinger egyenlet Időfüggő Schrödinger egyenlet Perturbációelmélet és elektronikus átmenetek Formális kvantummechanika és méréselmélet Impulzusmomentum, centrális potenciál, hidrogénatom Az anyagok elektronszerkezete Molekulák Kvantumstatisztikák Lézerek Bevezetés a szilárdtestfizikába Kémiai kötések és kristályszerkezetek A kristályszerkezet meghatározásának kísérleti módszerei Elektronok szilárdtestekben - szemiklasszikus leírás Elektronok periódikus potenciálban, sávszerkezet Inhomogén félvezetők Félvezető eszközök A szilárdtestek fajhője Sugárzási átmenetek Mágneses tulajdonságok Dielektromos tulajdonságok Szupravezetés | AD14: A Fizika 3 tárgy angol nyelvű kurzusának oktatásához angol nyelven jelenleg kizárólag teljes szakkönyvek állnak rendelkezésre. Minthogy évről-évre egyre több idegennyelvű hallgató jelenik meg ezen a kurzuson szükségessé válik egy olyan, a tanulást segítő angol nyelvű anyag elkészítése, amely a tárgy oktatásában szerzett több éves tapasztalataink alapján a hallgatók igényeinek legmegfelelőbb formában nyújt segítséget. | AF14: BMEVIK | AH14: Fizika 3 BMETE11MX01 | AK14: 2 | AL14: Gépészmérnöki, Mechatronikai, Terméktervezői | AN14: Fizika A3 BMETE15AX03 | AQ14: 3
A15: 13 | B15: BME FI | C15: Kocsányi László, Gádoros Patrik | D15: Problemen für Physik 1 und 2 | E15: Mérnöki fizika | F15: 2 | G15: 40 | H15: 0 | L15: 2 | N15: 90,000 | O15: 22 | P15: 930,000 | Q15: Adobe Acrobat Professional | R15: PDF, tartalomjegyzékkel | S15: 40,000 | U15: 16 | V15: 30 | AC15: Vektoren in der Physik: grundlegende Eigenschaften und Operationen mit Vektoren. Kinematik der Massenpunkte: Ort, Geschwindigkeit und Beschleunigung, Beschreibung von einfachen Bewegungen, Relativbewegung Dynamik der Massenpunkte: Bewegungsgesetze, Kraft und Potential, mechanische Energie, Impuls- und Energieerhaltung, Stösse, beschleunigende Koordinatensysteme Elektrostatik: Coulombsches Gesetz, elektrisches Feld und Superposition, elektrischer Fluss und Gaussches Gesetz, typische Ladungsverteilungen Elektrische Potential und Kapazität: Zusammenhang von elektrischem Feld und Potential, Energie unterschiedlicher Ladungsverteilungen, Kondensatoren Magnetismus: magnetische Induktion, Lorentzkraft, Ampéresches Gesetz, Spulen Elektromagnetische Induktion: Selbstinduktivität, Gegeninduktivität, Transformator Stromkreise: Strom und Kontinuität von Ladungen, Ohmsches Gesetz, Leistung, Kirchoffsche Gesetze, Parallel- und Serienschaltung Schwingungen: einfache Harmonische Bewegung, gedämpfte und erzwungene Schwingung, Resonanz Mechanische Wellen: Wellenlänge und Wellenzahl, Wellenausbreitung und Geschwindigkeit, ebene Wellen, stehende Wellen, Doppler Effekt Elektromagnetische Wellen: Wellenzahl, Zusammenhang elektrischen und magnetischen Felder, EM Doppler Effekt, Lichtintensität, Brechungsindex, Totalreflektion Geometrische Optik: Linsen und Spiegels, Brennweite, Abbildungsgesetz Interferenz: Schwebung, Doppelspalt (Youngsches) Experiment, Dünnschicht, Newtonsche Ringe, Optischer Gitter, Michelsonscher Interferometer, Dünnschichten, Wellengruppe Grundlagen der modernen Physik: Wärmestrahlung, Photoelektrischer Effekt, Photonen Einleitung in die spezielle Relativitätstheorie: schnell Bewegende Bezugsysteme, Zeitdilatation, Längekontraktion, Addition von Geschwindigkeiten | AD15: Fizika 1, 2 (VIK) és a Fizika A2, A3 (GPK) karok közt átfedő tematikájú tárgyak anyagának megértéséhez és elsajátításához elengedhetetlenül szükséges számolási gyakorlatok tartása. Ehhez egyetemünkön jelenleg nem áll rendelkezésre az előadások tematikájához illeszkedő, átfogó német nyelvű példatár, mely a hallgatók felkészülését az órákra és a számonkérésekre segítené. A példatár problémáinak 40 %-ára példamegoldást a maradékra végeredményt közlünk a módszerek könnyebb elsajátítása végett. | AK15: 1 | AQ15: 2
A16: 14 | B16: BME FI | C16: Hárs György, Dobos Gábor, Kocsányi László | D16: Fizika I | E16: Mérnöki fizika | F16: 3 | G16: 40 | H16: 0 | L16: 3 | N16: 730,000 | O16: 278 | P16: 1,970,000 | Q16: Adobe Acrobat Professional | R16: PDF, tartalomjegyzékkel | S16: 500,000 | U16: 2 | V16: 200 | X16: 10 | Y16: 5 | AC16: Mechanika Kinematika Tömegpont dinamikája Munka és energia Tömegpont rendszerek dinamikája Merevtestek dinamikája Oszcilláló mozgás Akusztikus hullámok Gravitáció A speciális relativitáselmélet alapjai Termodinamika Hőmérséklet A hőtan első főtétele A hőtan második főtétele Kinetikus gázelmélet Entrópia Transzportelmélet, Boltzmann egyenlet | AD16: A műszaki tudományok természettudományos alapjául szolgáló fizika oktatása a BME mérnöki karain modulrendszerben történik. A Fizika 1 tartalmazza a mechanikát és a hőtant, a Fizika 2 az elektromosságtant és az optikát, a Fizika 3 pedig a modern fizikát, ezen belül a kvantummechanikát és a szilárdtestfizikát, illetve a kitekintést. A helyzetet bonyolítja, hogy a különböző karok, illetve szakok eltérő matematikai eszköztárral és különböző mélységben igénylik a fizika oktatását, továbbá idegennyelvű, angol és német változatokra is szükség van. A komplex követelményeknek eleget tevő, elkészítendő modern elektronikus tananyag figyelemfelkeltő, színes ábrákkal, esetenként mozgóképekkel, valamint a megértést könnyítő kereszthivatkozásokkal segíti majd elő a többezres hallgatóság tanulását és vizsgára való felkészülését. A szakmai ismeretek közvetítése mellett fontos célunk a mérnökhallgatók modern természettudományos szemléletének fejlesztése is. | AK16: 1 | AQ16: 2
A17: 15 | B17: BME FI | C17: László István | D17: Atom- és molekulafizika MSc | E17: Elméleti fizika | F17: 1 | G17: 40 | H17: 6 | L17: 1 | N17: =V17*4000+W17*10000+Y17*10000+X17*12000 -> 80,000 | O17: 111 | P17: 580,000 | Q17: LaTex | R17: .pdf+wikimédia | S17: 200,000 | U17: 7 | V17: 20 | AC17: A kvantummechanika alapelveinek összefoglalása, relativisztikus kvantummechanika, az ab-initio elektronszerkezet számítás alapjai, atomok és molekulák elektronszerkezete, csatolások, atomok hűtése, csapdába ejtése, a szimmetria figyelembe vétele, molekulák rotációja és vibrációja, a spektroszkópia alapjai. | AD17: Az Elméleti fizika tárgyak igen fontos szerepet töltenek be a fizikus szakirányon tanuló fizika BSc hallgatók képzésében, hiszen ezek a tárgyak alapozzák meg a későbbi szakmai ismeretek oktatását, valamint a hallgatók tudományos kutatási tevékenységét, legyen az elméleti vagy kísérleti orientáltságú. Ugyanakkor ezek a tantárgyak alapvetők a tudományos világkép, a fizikusi szemlélet kialakításában is. A klasszikusnak számító négy tantárgyhoz (elméleti mechanika, elektrodinamika és relativitáselmélet, kvantummechanika, statisztikus fizika) kapcsolódik az MSc-n kötelező atom- és molekulafizika. Ezekből a tantárgyakból egységes írásos tananyag nem áll rendelkezésre. Kiemelten fontosnak tartjuk, hogy az oktatók honlapjáról letölthető, egyes részterületekre vonatkozó, eltérő készültségi szintű oktatási segédanyagokból kiindulva, egységes szerkezetű, korszerű tananyag készüljön, az elektronikus formának köszönhetően külső és belső hivatkozásokkal, színes ábrákkal és képekkel. A készülő tananyag jelentőségét növeli, hogy nemcsak a tantárgyakból való felkészülést segíti valamennyi fizikusképzésben, hanem az MSC egyik szakirányán az elméleti fizika szigorlatra készülést is, illetve kiegészítő tananyagként szolgál azon hallgatók számára, akik az alkalmazott fizika szakirányon belül kevesebb elméleti fizika képzésben részesültek. | AF17: Msc Fizikus | AH17: Atom és molekulafizika BMETE15MF02 | AJ17: 3 | AK17: 1 | AQ17: 1
A18: 16 | B18: BME FI | C18: Richter Péter, Sólyom András | D18: Physics (MSc, angol nyelven) | E18: Elméleti fizika | F18: 2 | G18: 40 | H18: 0 | L18: 1 | N18: 0 | O18: 0 | AC18: A kvantummechanika alapjai, elektronok, fotonok, atomok, molekulák. Kvantumstatisztikák. Szilárd testek szerkezete, fémek, szigetelők, félvezetők, elektromos, optikai és mágneses tulajdonságok | AK18: 1 | AQ18: 1
A19: 17 | B19: BME_FI | C19: Sükösd Csaba | D19: Kísérleti magfizika | E19: Kísérleti Fizika | F19: 1 | G19: 15 | H19: 3 | L19: 1 | N19: 780,000 | O19: 222 | P19: 1,225,000 | Q19: szöveg: LaTeX, animációk: Flash, ill. Delphi | R19: szöveg .pdf, animációk: flv, exe | S19: 400,000 | U19: 23 | V19: 200 | X19: 10 | Y19: 10 | AC19: Az atommag felépítése és jellemzői, a nukleonok jellemzői. Az atommag stabilitása, tömegdefektus, kötési energia. Folyadékcsepp modell és a félempirikus kötési-energia formula. Radioaktivitás: a radioaktív bomlás formái és jellemző mennyiségei. A radioaktív bomlás időbeli lefolyásának törvényszerűségei. alfa-, béta-, gamma- bomlás. egyszerű bomlás, összetett bomlás, bomlási sorok. Töltött részek (alfa-, béta- sugárzás) kölcsönhatása az anyaggal. Gamma- és neutronsugárzás kölcsönhatása az anyaggal. A sugárzás gyengülése az anyagon való áthaladás során. Gáz-ionizációs detektorok, szcintillációs számlálók, félvezető detektorok. Ködkamra, termolumineszcens detektorok, szilárdtest nyomdetektorok. Neutrondetektorok. Magreakciók általános törvényei és fajtái; magreakciók mechanizmusai (direkt és összetett mag képződésével járó). Hatáskeresztmetszet (mikroszkopikus és makroszkopikus). Neutron magreakciók fajtái és jellemzői. Neutron magreakciók hatáskeresztmetszetének energiafüggése. A neutronlassítás elméletének alapjai. Gyorsneutronok, rezonancia-neutronok, termikus neutronok. A maghasadás mechanizmusa. Hasadványok, hasadási neutronok jellemzése. A maghasadásban felszabaduló energia, és annak térbeli, időbeli megoszlása. Láncreakció, önfenntartó láncreakció feltétele, sokszorozási tényező. Termikus atomreaktorok elvi felépítése. Hasadóképes izotópokat termelő magreakciók, szaporító reaktorok működésének alapjai. Részecskegyorsító berendezések. Linac, ciklotron, szinkrotron. LHC. | AD19: A Kísérleti fizika tárgyak alapozzák meg a fizika BSc hallgatók természettudományos világképét és gondolkodásmódját, ezért kiemelten fontosnak tartjuk az egységes szerkezetű, korszerű tananyag elkészítést. Az új tananyag elektronikus formában külső és belső hivatkozásokkal, színes ábrákkal, képekkel és videókkal segíti a tanulást, ugyanakkor a vizsgára való készüléshez a LaTeX szerkesztésnek köszönhetően a képletekkel és ábrákkal együtt tipográfiailag is szép formában kinyomtatható. | AK19: 1 | AL19: Fizika | AN19: Kísérleti magfizika | AO19: 15 | AP19: 3 | AQ19: 1
B20: BME FI | C20: összesen | O20: =SUM(P3:P19) -> 18,660,000 | P20: 0
A21: 18 | B21: BME FI - ELTE FI | C21: Koppa Pál, Újsághy Orsolya, Vankó Péter (szerkesztők), Beleznai Szabolcs, Sarkadi Tamás, O. Steinbach Cecilia, Sepsi Örs, Gombkötő Balázs, | D21: Kísérleti fizika példatár | E21: Kísérleti Fizika | F21: 8 | G21: =2*AI21+180 -> 180 | H21: =2*AJ21+AP21 -> 2 | L21: 1 | N21: 600,000 | O21: =S21/1800 -> 278 | P21: 4,000,000 | Q21: Wikimédia | R21: Wikimédia | S21: 500,000 | U21: 27 | V21: 200 | Z21: 200 | AC21: Rövid elmélet – feladatok – ötletek – megoldások. Kinematika. Dinamika. Merev testek. Folyadékok. Rezgések és hullámok. Elektrosztatika, stacionáris áramok, magnetosztatika, indukció, eltolási áram. Maxwell-egyenletek vákuumban és anyagban. Elektromágneses rezgések és hullámok. Fénytörés, fényvisszaverődés. Fényhullámok interferenciája és diffrakciója. A speciális relativitáselmélet. Kinetikus gázelmélet. Termodinamika. Fázisátalakulások.A kvantummechanika alapjai. | AD21: A Kísérleti fizika tárgyak alapozzák meg a fizika BSc hallgatók természettudományos világképét és gondolkodásmódját, ezért kiemelten fontosnak tartjuk az egységes szerkezetű, korszerű tananyag elkészítést. A példatár egy-egy fejezete rövid elméleti öszefoglalóból, majd a feladatokból, a megoldást segítő ötletekből és a részletes megoldásból áll. A médiawiki formátum lehetővé teszi a feladatok tetszőleges csoportosítását, különböző foglalkozásokon való használatát és az egyéni gyakorlást is. | AI21: 0 | AK21: 1 | AL21: Fizika | AN21: Kísérleti fizika gyakorlat 1. BMETE13AF05 Kísérleti fizika gyakorlat 2. BMETE13AF06 Kísérleti fizika 3. BMETE13AF04 | AO21: 280 | AP21: 2 | AQ21: 1
A22: 19 | B22: BME FI - ELTE FI | C22: Beleznai Szabolcs, Dóczi Rita, Erdei Gábor, Fülöp Ferenc, Gombkötő Balázs, Halbritter András, Lenk Sándor, Maák Pál, Ujhelyi Ferenc, Vankó Péter, Vargáné Josepovits Katalin, Veress Máté, Wacha András | D22: Fizika laboratórium | E22: Kísérleti Fizika | F22: 13 | G22: =2*AI22+AO22 -> 300 | H22: =2*AJ22+AP22 -> 4 | L22: 1 | N22: 1,700,000 | O22: =S22/1800 -> 333 | P22: 7,240,000 | Q22: Wikimédia | R22: Wikimédia | S22: 600,000 | U22: 60 | V22: 500 | Y22: 20 | Z22: 60 | AC22: Elektromos egyenáramú alapmérések. Hőmérsékletérzékelők hitelesítése. A rugalmassági együttható meghatározása. Csatolt ingák vizsgálata V-scope-pal. Számítógépes mérések. RLC körök mérése. Folyadékok felületi feszültségének mérése. Vizsgálat oszcilloszkóppal. Fénysebesség mérése. Tehetetlenségi nyomaték vizsgálata. Állóhullámok megfeszített, rugalmas húrban. Folyadék szabad felszínének vizsgálata. Félvezető termoelem és Peltier-elem vizsgálata. Fajhő mérése. A kényszerrezgés vizsgálata. Granulált anyagok vizsgálata. Kaotikus kettős inga vizsgálata V-scope-pal. Folyadékok viszkozitásának mérése. Levegő nedvességtartalmának mérése. Optika I. Optika II. Folyadékkristályok vizsgálata. Sztatikus mágneses mező vizsgálata. Hullámjelenségek vizsgálata mikrohullámokkal. Millikan-kísérlet és szimuláció. Hőmérsékleti sugárzás vizsgálata. Fotoeffektus vizsgálata. Elektron fajlagos töltésének (e/m) mérése. Frank-Hertz kísérlet. Az elektron töltése és a Boltzmann-állandó hányadosának (e/k) mérése. A Planck és a Boltzmann-állandó hányadosának (h/k) mérése. Optikai heterodin detektálás és alkalmazásai. Kis fényintenzitások mérése: fázisérzékeny detektálás. Mérések spektrofotométerrel, hidrogén színkép vizsgálata. Gammasugárzás abszorpciója, folyadékszint- és sűrűségmérés. Bétasugárzás abszorpciójának és visszaszórásának vizsgálata, vastagságmérés. Pásztázó alagútmikroszkóp alkalmazása. Gigantikus mágneses ellenállás vizsgálata. Barkhausen-effektus vizsgálata. Hall-effektus vizsgálata. Piezoelektromos anyagok vizsgálata. Piroelektromos anyagok vizsgálata. Akuszto-optikai fénydiffrakció vizsgálata. Magnetooptikai Kerr-szög mérése. Gamma-sugárzás vizsgálata. Szcintillációs detektorok vizsgálata. Aalfa-spektroszkópia félvezető detektorral. Gáztöltésű detektorok vizsgálata. Optikai effektusok vizsgálata és optikai mérési módszerek, optoelektronikai eszközök vizsgálata, aktivációs analitika, neutrondetektálás, termikus neutron fluxus, késő neutron paraméterek vizsgálata, felületanalitikai mérési módszerek, vékonyrétegek készítése és vizsgálata. | AD22: A Kísérleti fizika tárgyak alapozzák meg a fizika BSc hallgatók természettudományos világképét és gondolkodásmódját, ezért kiemelten fontosnak tartjuk az egységes szerkezetű, korszerű tananyag elkészítést. A laboratóriumi tananyag a mérésekhez tartozó elméleti ismeretek összefoglalásán, a mérőeszközök és a mérési feladatok ismertetésén kívül segítséget ad a jegyzőkönyvek elkészítéséhez is. A médiawiki formátumban készülő tananyaghoz a legérdekesebb mérésekről videók készülnek, ami a fizikus szak népszerűsítését is segítheti. | AI22: 0 | AK22: 1 | AL22: Fizika | AN22: Fizika laboratórium 1. BMETE13AF07 Fizika laboratórium 2. BMETE13AF08 Fizika laboratórium 3. BMETE13AF09 Fizika laboratórium 4. BMETE13AF10 Fizika laboratórium 5. BMETE12AF05 | AO22: 300 | AP22: 4 | AQ22: 1
A23: 20 | B23: BME FI - ELTE FI | C23: Halbritter András (BME, felelős szerkesztő), Csonka Szabolcs (BME), Mihály György (BME), Kiss Gábor (BME), Csontos Miklós (BME) Zaránd Gergely (BME), Makk Péter (BME), Geresdi Attila (BME), Kürti Jenő (ELTE), Geszti Tamás (ELTE), Cserti József (ELTE), Oroszlány László (ELTE), Pályi András (ELTE), Vigh Máté (ELTE), Dávid Gyula (ELTE) | D23: Nanofizika tudásbázis | E23: Nanofizika | F23: 15 | G23: =2*AI23+AO23 -> 420 | H23: =2*AJ23+AP23 -> 6 | L23: 1 | N23: 1,520,000 | O23: =S23/1800 -> 556 | P23: 8,000,000 | Q23: Wikimédia | R23: Wikimédia | S23: 1,000,000 | U23: 10 | V23: 400 | X23: 40 | AC23: Atomi felbontású mikroszkópiai eljárások (pásztázó alagútmikroszkóp, atomi erő mikroszkóp, elektronmikroszkóp, He-ion mikroszkóp) Mintakészítési módszerek (elektronsugár litográfia, korszerű rétegleválasztási és marási módszerek: vákumgőzölés, porlasztás, CVD, önszerveződő leválasztás, kémiai marás, plazma ill. ionsugaras marás) A nanofizika alapjai (kvantum transzport, vezetőképesség kvantálás, interferenciajelenségek nanoszerkezetekben, kvantum Hall effektus, egyelektron tranzisztorok) Szén nanoszerkezetek (grafén, szén nanocsövek, fullerének) Félvezető nanoszerkezetek Hibrid szupravezető - normál nanoszerkezetek Molekuláris Elektronika Spintronika Kvantum számítógépek és kvantum kommunikáció Nanomechanikai eszközök kvantummechanikai viselkedésének keresése Nanoszerkezetek elméleti modellezése Green függvény technikákkal Funkcionális nanoszerkezetek kialakítása önrendeződéssel A nanorészecskék optikai tulajdonságai | AD23: A nanofizika rohamosan fejlődő tudományága alapvetően határozza meg a mindennapjainkat az egyre tágabb területeken megjelenő nanotechnikai újításoknak köszönhetően. Ezt a gyors fejlődést csak a szakirodalom folyamatos feldolgozásával lehet nyomon követni, a – jelenleg csak idegen nyelven rendelkezésre álló – szakkönyvekből is pár év elteltével már hiányoznak az alapvető jelentőségű legfrissebb eredmények. Az ELTE és BME természettudományi karainak együttműködésével egy Magyarországon egyedülálló nanofizikai iskola alakult ki. A két egyetem nanofizika iránt érdeklődő hallgatói széleskörű oktatást kapnak a nanofizika területén mind az elméleti alapokról, mind a legfrissebb kísérleti eredményekről mintegy 12 nanofizika témájú tárgy keretében. Ezen tárgyak oktatói a pályázat keretében egy átfogó nanofizikai tudásbázis létrehozását tervezik. Ez a tudásbázis nem konkrét tárgyak tananyaga, hanem egy átfogó, a nanofizika legfrissebb eredményeit felvonultató ismeretterjesztő e-learning anyag, mely segítséget nyújt a nanofizika iránt érdeklődő hallgatóknak és kutatóknak a legfrissebb eredmények és bevált nanofizikai módszerek közötti tájékozódásban. | AF23: BME-ELTE fizikus | AG23: Kutató Fizikus, Alkalmazott fizikus | AH23: Új kísérletek a Nanofizikában Transzport Komplex Nanoszerkezetekben Nanofizika szeminárium és journal club (A Nature, Science, és egyéb vezető folyóiratokban frissen megjelenő eredmények nyomon követése) Mikro és nanotechnológiák Alklamazott szilárdtestfizika Mezoszkópikus rendszerek elmélete Félvezetők fizikája és félvezető nanoszerkezetek Szén nanoszerkezetek Mezoszkópikus rendszerek fizikája I Mezoszkópikus rendszerek fizikája II Szupravezető mezoszkópikus rendszerek Új kísérletek a kvantummechanikában Kvantumjelenségek elmélete Mikro- és nanotechnológia | AI23: 0 | AJ23: 3 | AK23: 1 | AO23: 420 | AQ23: 1
B24: BME FI - ELTE FI | C24: összesen | O24: =SUM(P21:P23) -> 19,240,000 | P24: 0
A25: 21 | B25: BME MI | C25: Wettl Ferenc | D25: A lineáris algebra alkalmazásai | E25: Matematika | F25: 1 | G25: 2,000 | H25: =2*AJ25+AP25 -> 0 | L25: 1 | N25: =V25*3000+W25*10000+Y25*10000+X25*8000 -> 280,000 | O25: =S25/1800 -> 139 | P25: 2,680,000 | R25: PDF | S25: 250,000 | U25: 15 | V25: 30 | W25: 10 | X25: 10 | Y25: 1 | AC25: Sztöchiometria, kémiai reakciók egyensúlya-Hálózatok, gráfok-Internetes keresés, Google-GPS-Hibajavító kódok-Kép és hangtömörítés-Jelfeldolgozás-Mögöttes tartalmak keresése-Kriptográfiai alkalmazások-Markov-láncok-Robotok geometriája-Lineáris differenciálegyenletek
A26: =A25+1 -> 22 | B26: BME MI | C26: Vetier András | D26: Exercise Book to "Probability Theory with Simulations" | E26: Matematika | F26: 1 | G26: 2,000 | H26: =2*AJ26+8 -> 8 | L26: 3 | N26: 600,000 | O26: =S26 -> 0 | P26: 3,080,000 | Q26: A köny Latex-vel, PDF fromátumban készül, benne linkek, melyek interaktív EXCEL fájlokat aktivizálnak | R26: 75 fejezet | S26: 0 | W26: 30 | X26: 0 | Y26: 30 | AC26: Part-I: Probability of events-Introductory problems-Outcomes and events-Relative frequency and probability-Random numbers-Classical problems-Geometrical problems, uniform distributions-Basic properties of probability-Conditional relative frequency and conditional probability-Independence of events-Infinite sequences of events-Drawing with or without replacement. Permutations-Part-II: Discrete distributions-Discrete random variables and distributions-Uniform distribution (discrete)-Hyper-geometrical distribution-Binomial distribution-Geometrical distribution (pessimistic)-Geometrical distribution (optimistic)-Negative binomial distribution (pessimistic)-Negative binomial distribution (optimistic)-Poisson-distribution-Higher dimensional discrete random variables and distributions-Poly-hyper-geometrical distribution-Polynomial distribution-Generating a random variable with a given discrete distribution-Mode of a distribution-Expected value of discrete distributions-Expected values of the most important discrete distributionsExpected values of the most important discrete distributions-Expected value of a function of a discrete random variable-Part-III: Continuous distributions in one-dimension-Continuous random variables-Distribution function-Histogram-Uniform distributions-Distributions of some functions of random numbers-Arc-sine distribution-Cauchy distribution-Beta distributions-Exponential distribution-Generating a random variable with a given continuous distribution-Expected value of continuous distributions-Expected value of a function of a continuous random variable-Median-Standard deviation, etc.-Poisson-processes-Transformation from line to line-Part-IV: Two-dimensional continuous distributions-Two-dimensional random variables and distributions-Uniform distribution on a two-dimensional set-Beta distributions in two-dimensions-Projections and conditional distributions-Properties of the expected value, variance and standard deviation-Transformation from plane to line-Transformation from plane to plane-Sums of random variables. Convolution-Limit theorems to normal distributions-Part-V: Statistics-Regression in one-dimension-Regression in two-dimensions-Linear regression-Confidence intervals-U-tests-T-tests-Test with ANOVA (Analysis of variance) | AK26: 1 | AL26: Építőmérnöki Kar (ÉMK),Gépészmérnöki Kar (GPK),Építészmérnöki Kar (ÉPK),Vegyészmérnöki és Biomérnöki Kar (VBK),Villamosmérnöki és Informatikai Kar (VIK),Közlekedésmérnöki Kar (KSK),Gazdaság- és Társadalomtudományi Kar (GTK),Építőmérnöki Kar (ÉMK),Gépészmérnöki Kar (GPK),Építészmérnöki Kar (ÉPK),Vegyészmérnöki és Biomérnöki Kar (VBK),Villamosmérnöki és Informatikai Kar (VIK),Közlekedésmérnöki Kar (KSK),Gazdaság- és Társadalomtudományi Kar (GTK),Közép-Európai Egyetem | AN26: Matematika A4 Valószínűségszámítás, Matematika A4 Valószínűségszámítás, Matematika A4 Valószínűségszámítás, Matematika A4 Valószínűségszámítás, Matematika A4 Valószínűségszámítás, Matematika A4 Valószínűségszámítás,Matematika A4 Valószínűségszámítás,Matematika A4 Valószínűségszámítás,Matematika A4 Valószínűségszámítás, Matematika A4 Valószínűségszámítás, Matematika A4 Valószínűségszámítás,Matematika A4 Valószínűségszámítás,Matematika A4, Valószínűségszámítás, Statistics with Excel | AP26: 4 | AQ26: 3
A27: =A26+1 -> 23 | B27: BME MI | C27: Bolla Marianna | D27: Gépi tanulási módszerek a statisztikában | E27: Matematika | F27: 1 | G27: 2,000 | H27: 5 | L27: 2 | N27: 90,000 | O27: 150 | P27: 2,540,000 | Q27: LaTex | R27: PDF | S27: 150 | U27: 10 | W27: 5 | X27: 5 | AC27: EM algoritmus és alkalmazás keverékek felbontására-ACE algoritmus általánosított regresszióra-Független komponens analízis (ICA), RKHS technikák-Dinamikus faktoranalízis idősorokra (AR faktorfolyamat)-Küszöbmodellek, probit- és logitanalízis-Varianciaanalízis általánosan: MANOVA és nemparaméteres ANOVA-Többszörös korrespondanciaanalízis többdimenziós tömbökre-Neurális hálók, SOM-Újramintavételezési eljárások: jackknife, bootstrap-Spektrális klaszteranalízis | AK27: 1 | AL27: Matematikus,Matematikus,Matematikus,Matematikus,nformatikus, Matematikus | AM27: Sztochasztika,Pénzügyi | AN27: Többváltozós startisztika BMETE95MM15,Többváltozós statisztika gazdasági alkalmazásokkal BMETE95MM18,Statisztikai módszerek az adatbányászatban BMETE959307,Adatbányászat,Multivariate Staistics 97 | AP27: 5 | AQ27: 3
A28: 24 | B28: BME MI | C28: Faragó István, Horváth Róbert | D28: Numerikus módszerek példatár | E28: Matematika | F28: 2 | G28: 2,000 | H28: 6 | L28: 1 | N28: 15,000 | O28: 150 | P28: 2,875,000 | Q28: LaTeX szövegszerkesztővel készült elektronikus jegyzet hiperhivatkozásokkal. | R28: PDF | S28: 150 | U28: 10 | V28: 5 | Z28: 250 | AC28: Közönséges differenciálegyenletek numerikus módszereinek bevezetése, a motiváció felvázolása. Egyszerű egylépéses módszerek ismertetése, elemzése. Az általános egylépéses módszerek vizsgálata, explicit és implicit Runge-Kutta-típusú módszerek. Konzisztencia vizsgálata, rendkorlátok. A zéró-stabilitás és a konvergencia. merev rendszerek, A-stabilitás. Prediktor-korrektor típusú módszerek. A módszerek realizálása MATLAB programmal. Többlépéses módszerek, konzisztencia és stabilitás. Konvergencia, rendfeltétel. A módszerek realizálása MATLAB programmal. Közönséges differenciálegyenletek kétpontos peremérték-feladatainak vizsgálata. Egzisztencia és unicitás. A numerikus megoldás előállítása belövéses módszerrel. Algortimikus realizálás, többszörös belövés módszere. A numerikus megoldás előállítása véges differenciák módszerével. Approximáció, stabilitás, konvergencia. A módszerek realizálása MATLAB programmal. gyakorlati feladatok megoldása. | AF28: Matematikus MSC | AG28: alkalmazott matematikus | AH28: ELTEmm3n1nmk | AJ28: 6 | AK28: 1 | AL28: Matematikus,Fizikus,Matematikus ,Matematikus , | AM28: ,elméleti fizika,alkalmazott analízis,alkalmazott analízis, | AN28: BMETE92AM00, numerikus módszerek,BMETE92AF03, numerikus módszerek,BMETE92MM07,ELTEmm1n1aa5e, | AP28: 6 | AQ28: 1
A29: 25 | B29: BME MI | C29: Küronya Alex, Pintér Döme | D29: Multilinearis es homologikus algebra alkalmazasokkal | E29: Matematika | F29: 2 | G29: 2,000 | H29: 4 | L29: 1 | N29: 45,000 | O29: =S29/1800 -> 111 | P29: 2,885,000 | Q29: LaTex | R29: PDF | S29: 200,000 | U29: 5 | V29: 15 | Z29: 150 | AC29: Multilineáris algebra-Algebrai geometriai és differenciálgeometriai alkalmazások-Homologikus algebra-Bevezetés az -algebrai topológiába-Fizikai alkalmazások | AF29: matematikus Msc,matematikus Msc,matematikus Msc,matematikus Msc,matematikus Msc,matematikus Msc | AH29: Haladó lineáris algebra,Homologikus algebra BMETE919204,Reprezentócióelmélet BMETE91MM02,Bevezetés az algebrai topológiába BMETE919214,Kommutatív algebra és algebrai geometria BMETE91MM01,Algebrai és általános kombinatorika BMEVISZM020 | AJ29: 5 | AK29: 1 | AL29: matematikus Bsc,fizikus Bsc,ELTEmatematikus Bsc, | AN29: Lineáris algebra,Lineáris algebra,Algebra , | AP29: 4 | AQ29: 1
A30: 26 | B30: BME MI | C30: Tóth János, Lángné Lázi Márta, Lóczi Lajos | D30: Glimpses of mathematics for students in cognitive science | E30: Matematika | F30: 3 | G30: 2,000 | H30: =2*AJ30+AP30 -> 0 | L30: 2 | N30: 550,000 | O30: 300 | P30: 3,750,000 | R30: PDF és esetleg .nb | S30: 300 | U30: 10 | W30: 25 | X30: 25 | Y30: 10 | AK30: 1 | AQ30: 1
A31: 27 | B31: BME MI | C31: Csákány Anikó, V.Nagy Éva | D31: Feladattár a Bevezető matematika című felzárkóztató tantárgyhoz | E31: Matematika | F31: 2 | G31: 2,000 | H31: =2*AJ31+AP31 -> 0 | L31: 1 | N31: 0 | O31: 0 | P31: 2,800,000 | Q31: HTML | R31: YOOMLA | AC31: Nulladik matematika zárthelyi gyakorló feladatsorok-Elemi algebrai műveletek, azonosságok, százalékszámítás-Elemi függvények tulajdonságai és ábrázolásuk-Egyenletek, egyenlőtlenségek-Egyenletrendszerek-Síkvektorok-Koordinátageometria-Számsorozatok-Síkgeometria-Térgeometria-Kombinatorika, valószínűségszámítás | AK31: 1 | AL31: BME, ELTE, alapképzés | AM31: minden mérnök kar | AN31: Bvezető matematika(BMETEAX40) | AQ31: 1
A32: 28 | B32: BME MI | C32: Nagy Attila | D32: Félcsoportelmélet (BMETE915005) | E32: Matematika | F32: 1 | G32: 2,000 | H32: =2*AJ32+AP32 -> 9 | L32: 1 | N32: 0 | O32: 200 | P32: 2,490,000 | R32: PDF | S32: 200 | U32: 15 | AC32: 1. A félcsoport fogalma, az általánosított asszociativitás-, illetve kommutativitás tételei. Félcsoport kitüntetett elemei. A csoport fogalma. A csoport fogalmának ekvivalens definíciói. 2. A részfélcsoport fogalma. Félcsoport elemének indexe, periódusa és rendje. Ciklikus félcsoportok. Félcsoport maximális részcsoportjai. 3. Félcsoport egy- és kétoldali ideáljai. A Green-féle ekvivalenciarelációk. Egyszerű, balegyszerű, illetve 0-egyszerű, bal 0-egyszerű félcsoportok. Minimális, 0-minimális ideálok. 4. Egy adott halmazon értelmezett binér relációk félcsoportja. Félcsoport kongruenciái. Rees-féle kongruenciák. Az ideálbővítés fogalma. Faktorfélcsoport. Félcsoport főfaktorai. Félcsoport homomorfizmusai. A homomorfizmustétel és az izomorfizmustételek. 5. Félcsoport transzlációi és a reguláris reprezentáció. Félcsoport transzlációs burka. Gyengén reduktív félcsoportok. Gyengén reduktív félcsoportok ideálbővítésének vizsgálata. 6. Félcsoport beágyazása csoportba, illetve csoportok uniójaként előálló félcsoportba. Egyszerűsítéses félcsoport, jobb reverzibilis félcsoport, szeparatív félcsoport. Félcsoport legszűkebb szeparatív kongruenciájának leírása. 7.Reguláris, teljesen reguláris félcsoport. Inverz félcsoport. Reguláris félcsoportok kongruenciá. Csoportok félhálója és erős félhálója, a Clifford félcsoport. 8. A teljesen egyszerű félcsoport, a Rees matrix félcsoport. 9. Félcsoport legszűkebb félhálókongruenciájának leírása. Félhálófelbonthatatlan félcsoportok, arkhimédeszi félcsoportok. Putcha-félcsoportok. Köteg felbontása derékszögű kötegek félhálójára. 10. Félcsoportok direkt, illetve szubdirekt szorzata, jellemzésük kongruenciák segítségével. 11. Szubdirekt irreducibilis félcsoportok speciális félcsoportosztályokban.. 12. Félcsoportok jellemzése a kongruenciahálójuk alapján (-félcsoport, permutálható félcsoport). 13. Véges félcsoportok: félcsoportalgebra. félcsoport Rhodes-radikálja. 14. Félcsoportok mátrixreprezentációja. 15. Automataelméleti alkalmazások: Automaták jellemzése karakterisztikus félcsoportjuk segítségével. | AF32: Matematika BsC, MsC | AG32: Elméleti | AH32: Félcsoportelmélet (BMETE915005) | AJ32: 3 | AK32: 1 | AL32: Matematikus BsC, | AM32: Elméleti | AN32: Félcsoportelmélet (BMETE915005) | AP32: 3 | AQ32: 1
A33: 29 | B33: BME MI | C33: Gazdag-Tóth Boglárka | D33: Optimalizálási rendszerek | E33: Matematika | F33: 1 | G33: 2,000 | H33: =2*AJ33+AP33 -> 0 | L33: 1 | N33: 30,000 | O33: 150 | P33: 2,430,000 | Q33: szövegszerkeszto"ben írnám, bármely browserrel nézhet? lenne | R33: XML/HTML | S33: 150 | W33: 3 | Z33: 15 | AK33: 1 | AQ33: 1
A34: 30 | B34: BME MI | C34: Babcsányi István | D34: Nyelvek és automaták | E34: Matematika | F34: 1 | G34: 2,000 | H34: =2*AJ34+AP34 -> 6 | L34: 1 | N34: 0 | O34: 200 | P34: 2,460,000 | R34: PDF | S34: 46 fejezet | U34: 46 | AC34: I. Formális nyelvek A nyelv fogalma. Nyelvalgebrák. Generatív grammatikák. Chomsky nyelvosztályok. Reguláris nyelvek. Lineáris egyenletek megoldása nyelvalgebrában. Környezetfüggetlen nyelvek. Chomsky normálforma. Bar-Hillel lemma. Felesleges szimbólumok kiküszöbölése. Bal oldali levezetések. Greibach normálforma. Reguláris környezetfüggetlen nyelvek. Homomorf jellemzés. Környezetfüggetlen kifejezések. Kleene algebrák. Parikh függvények. LL(k) és LR(k) grammatikák. Környezetfüggő nyelvek. Mondatszerkezetű nyelvek. Eldönthetőségi kérdések. II. Nyelvek és automaták Nyelvek előállítása automatákban. Véges automatákban előállítható nyelvek. Kleene tétele. Veremautomaták és a környezetfüggetlen nyelvek. Determinisztikus nyelvek. Fautomaták. A környezetfüggetlen nyelvek és a fautomaták. Turing automaták és a mondatszerkezetű nyelvek. Rekurzív nyelvek. III. Speciális nyelvosztályok Véges nyelvek. Kommutatív nyelvek. Nilpotens nyelvek. Definit nyelvek. Lokálisan tesztelhető nyelvek. Irányítható automatában előállítható nyelvek. Diszjunktív nyelvek. IV. Változó hosszúságú kódok A kód fogalma és mértéke. Maximális kódok Sűrű és ritka kódok. Prefix kódok algebrája. Szemafor kódok. Bifix kódok. Hiperkódok. Kódok és automaták. Hibajavító kódok. Optimális kódok. V. Végtelen szavak A végtelen szó fogalma. Büchi automaták. Kleene tétele végtelen szavakra. | AF34: matematikus | AG34: MSC,PhD | AH34: Nyelvek és automatákBMETE915023,Szabad félcsoportok és kódokBMETE915037 | AJ34: 3 | AK34: 1 | AQ34: 1
A35: 31 | B35: BME MI | C35: Nagy Lajos, Sereny Gyorgy | D35: Villamosmernoki targyakhoz adaptalt halado matematikai | E35: Matematika | F35: 3 | G35: 2,000 | H35: 6 | L35: 3 | N35: 210,000 | O35: 150 | P35: 3,470,000 | S35: 150 oldal | U35: 10 | V35: 70 | AK35: 1 | AL35: VIK | AM35: Villamosmérnöki,Villamosmérnöki,Villamosmérnöki,Informatikai | AN35: Elektromágneses terek VIHVA204,Jelek és rendszerek 1. VIHVA 109,Jelek és rendszerek 2. VIHVA 200,Jelek és rendszerek VIHVA 214 | AP35: 6 | AQ35: 3
A36: 32 | B36: BME MI | C36: Győrfi Zoltán, Molnár László | D36: A geometria alapjainak oktatása a hiperbolikus geometria egy fizikai modelljéből kiindulva. | E36: Matematika | F36: 1 | G36: 2,000 | H36: =2*AJ36+AP36 -> 0 | L36: 1 | N36: 0 | O36: 0 | P36: 2,400,000 | AK36: 1 | AQ36: 1
A37: 33 | B37: BME MI | C37: V.Nagy Éva, Szilágyi Brigitta, Lázi Márta, Tóth János, Fűzfa Balázs | D37: Elmeszeletek | E37: Matematika | F37: 6 | G37: 2,000 | H37: 6 | L37: 3 | N37: 300,000 | O37: 600 | P37: 4,760,000 | R37: PDF | S37: 600 | U37: 11 | V37: 50 | W37: 15 | Z37: 500 tesztfeladat | AC37: Versenyfelkészítő anyagok-Versenyfelkészítő anyagok geometriából-Versenyfelkészítő anyagok egyváltozós analízisből-Versenyfelkészítő anyagok többváltozós analízisből-Versenyfelkészítő anyagok lineáris algebrából-Versenyfelkészítő anyagok számelméletből-Az egyváltozós analízis mérnöki alkalmazásai-Az többváltozós analízis-Vektoranalízis mérnöki alkalmazásai mérnöki alkalmazásai-Differenciálegyenletek-Differenciálegyenletek közelítő megoldásai-Önellenörzést segítő elméleti tesztek-Önellenörzést segítő tesztfeladatok-Módszertani jegyzetek | AK37: 1 | AL37: mérnök és gazdasági szak | AN37: reguláris matematika | AP37: 6 | AQ37: 3
A38: 34 | B38: BME MI | C38: Kónya Ilona, Pataki Gergely, Tasnádi Tamás | D38: Analízis 2. Informatikusoknak. | E38: Matematika | F38: 4 | G38: 2,000 | H38: 0 | L38: 2 | N38: 150,000 | P38: 3,750,000 | Q38: LaTeX rendszer, futtatói: PDF nézegető | R38: PDF nézegető | S38: 500000 leütés (250 oldal) elmélet és 300000 leütés (150 oldal) példatár. | U38: 4 | V38: 50 | AC38: Közönséges differenciálegyenletek-Függvénysorok-Többváltozós függvények-Komplex függvénytan | AK38: 1 | AL38: VIK,egyéb műszaki jellegű egyetemek, főiskolák | AM38: mérnök-informatikus szak,villamosmérnök szak | AN38: analízis2, BMETE90AX05,Matematika A2, BMETE90AX02 | AQ38: 2
A39: 35 | B39: BME MI | C39: Barabás Béla,Fülöp Otília | D39: Építész matematika 2. | E39: Matematika | F39: 2 | G39: 2,000 | H39: 0 | L39: 1 | N39: 0 | O39: 0 | P39: 2,800,000 | Q39: LaTeX | R39: PDF | U39: 11 | V39: 0 | W39: 0 | X39: 0 | Y39: 0 | Z39: 400 feladat | AC39: Koordináta geometria 3 dimenzióban-Lineáris vektortér-Lineáris egyenletrendszerek-Komplex számok-Mátrixok sajátértékei, sajátvektorai, főtengely tétel-Közönséges elsőrendű differenciálegyenletek-Közönséges másodrendű differenciálegyenletek-Kétváltozós függvények differenciálszámítása-Kettősintegrál alkalmazásai-Térgörbék differenciálgeometriája-Felületek differenciálgeometriája | AK39: 1 | AQ39: 1
A40: 36 | B40: BME MI | C40: Balázs Márton, Tóth Bálint | D40: Valószínűségszámítás 1. jegyzet matematikusoknak és fizikusoknak | E40: Matematika | F40: 2 | G40: 2,000 | H40: 4 | L40: 1 | N40: 0 | O40: 0 | P40: 2,840,000 | Q40: LaTex | R40: PDF | U40: 8 | Z40: 267 | AC40: Kombinatorikai összefoglaló -A valószínûségszámítás alapjai Feltételes valószínûség Diszkrét valószínûségi változók Folytonos valószínûségi változók Együttes eloszlások A várható érték tulajdonságai Nagy számok törvénye, Centrális határeloszlástétel | AK40: 1 | AL40: BME TTK matematikus, fizikus | AN40: Valószínűségszámítás 1. | AP40: 4 | AQ40: 1
A41: 37 | B41: BME MI | C41: Szép Gabrella | D41: Feladelme (feladatgyűjtemény továbbfejlesztés) | E41: Matematika | F41: 1 | G41: 2,000 | H41: 0 | L41: 1 | N41: 800,000 | O41: 120 | P41: 3,200,000 | Q41: NETBEANS, JAVA+JSF | R41: ORACLE DB+WAR+PDF,PNG,TEX | AC41: Elemi térgeometria-Függvénysorok | AK41: 1 | AQ41: 1
A42: 38 | B42: BME MI | C42: Csákány Anikó,Sándor Csaba, Vetier András | D42: Új munkatársak módszertani felkészítése az oktatásban való részvételre | E42: Matematika | F42: 3 | G42: 2,000 | H42: 6 | L42: 1 | N42: 0 | O42: =S42/1800 -> 9 | P42: 3,260,000 | S42: 17,000 | AC42: Mit kell tudni az oktatás megkezdése előtt a körülményekről?-Mit kell tudni az oktatás megkezdése előtt az oktatott-tantárgyról?-Mit kell tudni a mérnökhallgatókról?-Hogyan kell felkészülni az órára? - Tanácsok az első óra megtartásához-Milyen fogásokkal segíthetem az oktatói munkám hatékonyságát? -Hogyan értékelhetem a saját munkámat az óra megtartása után? -Segédanyag az új munkatárs számára a mentorral való kapcsolattartáshoz-Segédanyag az oktatási mentor számára-Segédanyag az új munkatárs tevékenysége utólagos értékeléséhez a félév végén | AF42: Matematikus MSc,alkalmazott matematikus MSc,fizikus MSc,PhD képzés fizika,PhD képzés matematika | AH42: Oktatásmódszertan | AJ42: 2 | AK42: 1 | AL42: matematika BSc,fiziks BSc, | AN42: Oktatásmódszertan | AP42: 2 | AQ42: 1
A43: 39 | B43: Ibl Miklós | C43: Bölcskey | D43: Ábrázoló geometria példákon keresztül II. | E43: Matematika | F43: 2 | G43: 2,000 | H43: 3 | L43: 1 | N43: 60,000 | O43: =S43/1800 -> 280 | P43: 2,890,000 | Q43: MS Wordben előkészített forgatókönyvek alapján AutoCADben készülnek el a modellek. A kész videokat professzionális rendszerrel rögzítjük. | R43: pdf fájlok amelyek a feladatokat ill. avi fájlok, amelyek a részletes megoldásokat videonak feldolgozva tartalmazzák. | S43: =14*20*1800 -> 504,000 | V43: 20 | Z43: 35 | AK43: 1 | AL43: gépész BSc,terméktervező BSc,építészmérnök,építészmérnök,építőmérnök | AN43: Ábrázoló geometria 2 BMETE94AX02,Ábrázoló geometria 2 BMETE94AX03,Ábrázoló geometria II SGYMASZ205XXX,Építészeti ábrázoló SGYMASZ211XXX,Építők geometriája SGYMASZ282XXX | AP43: 3 | AQ43: 1
B44: BME MI | C44: összesen | O44: =SUM(P25:P43) -> 57,360,000 | P44: 0
A45: 45 | B45: BME NTI | C45: Aszódi Attila, Kiss Attila | D45: Atomerőművi anyagvizsgálatok | F45: 2 | G45: =2*AJ45+AP45 -> 6 | H45: =2*AJ45+AP45 -> 6 | N45: =V45*3000+W45*10000+Y45*10000+X45*12000 -> 450,000 | O45: 100 | P45: =N45+F45*400000+H45*10000 -> 1,310,000 | Q45: Wikimédia | R45: Wikimédia | S45: 160,000 | T45: 8 | U45: 100 | V45: 10 | W45: 20 | X45: 10 | Y45: 10 | AC45: Nyomottvizes atomerőművek primer és szekunder köri főberendezéseinek ellenőrzési módszerei, az atomerőművi környezet által okozott speciális szempontok. Üzemelő és leállított reaktor mellett alkalmazott vizsgálati eljárások, hibadetektálási technikák. Rea | AD45: Hiánypótló, teljesen új jegyzet | AF45: Fizikus | AG45: nukleáris szakirány | AH45: Atomerőművi anyagvizsgálatok | AI45: 15 | AJ45: 2 | AK45: 1 | AL45: Energetikai mérnök | AN45: Atomerőművi anyagvizsgálatok | AO45: 15 | AP45: 2 | AQ45: 1
A46: 46 | B46: BME NTI | C46: Bencze Attila, Berta Miklós, Veres Gábor | D46: Measurements in COMPASS tokamak plasmas | E46: FUSENET | F46: 3 | G46: 8 | H46: =2*AJ46+AP46 -> 8 | N46: =V46*4000+W46*10000+Y46*10000+X46*12000 -> 186,000 | O46: 30 | P46: =2*N46+F46*400000+H46*10000+G46*12000 -> 1,748,000 | Q46: Wikimédia | R46: Wikimédia | T46: 3 | W46: 3 | X46: 3 | Y46: 12 | AC46: Mérési útmutatók a magyar oktatók által, a prágai COMPASS tokamakon vezetett gyakorlatokhoz: Gyorskamerás mérések és kiértékelésük. Li-nyalábos emissziós spektroszkópiai mérések. Atom Nyaláb Szonda mérések. | AD46: Teljesen új | AF46: Fizikus | AG46: nukleáris szakirány | AH46: Fúziós plazmafizika laboratórium | AI46: 15 | AJ46: 4 | AK46: 2 | AQ46: 2
A47: 47 | B47: BME NTI | C47: Dunai Dániel, Kálvin Sándor, Kocsis Gábor, Szepesi Tamás, Zoletnik Sándor | D47: Fejezetek a magas hőmérsékletű kísérleti plazmafizikából | E47: FUSENET | F47: 5 | G47: 12 | H47: =2*AJ47+AP47 -> 12 | N47: =V47*4000+W47*10000+Y47*10000+X47*12000 -> 260,000 | O47: 130 | P47: =2*N47+F47*400000+H47*10000+G47*12000 -> 2,784,000 | Q47: Wikimédia | R47: Wikimédia | S47: 300,000 | T47: 11 | U47: 200 | W47: 4 | X47: 10 | Y47: 10 | AC47: Fejezetek a magas hőmérsékletű kísérleti plazmafizikából Tematika: Bevezetés a kísérleti magas hőmérsékletű plazmafizikába,Mágneses tér toroidális berendezésekben, Hullámok plazmákban, Passzív és aktív spektroszkópia, Plazma-fal kölcsönhatás, SOL, Pe | AD47: Nincs még ilyen anyag | AF47: Fizikus | AG47: nukleáris szakirány | AH47: tervezett: Kísérleti plazmafizika I.-II. | AI47: 10 | AJ47: 6 | AK47: 3 | AQ47: 3
A48: 49 | B48: BME NTI | C48: Pokol Gergő, Zoletnik Sándor, Papp Gergely | D48: Bevezetés a fúziós plazmafizikába | E48: FUSENET | F48: 3 | G48: 6 | H48: =2*AJ48+AP48 -> 6 | N48: =V48*4000+W48*10000+Y48*10000+X48*12000 -> 600,000 | O48: 200 | P48: =2*N48+F48*400000+H48*10000+G48*12000 -> 2,532,000 | Q48: Wikimédia | R48: Wikimédia | S48: 200,000 | T48: 12 | U48: 200 | V48: 10 | W48: 20 | X48: 20 | Y48: 12 | AC48: Energiatermelés, fúziós reaktor felépítése, Lawson-kritérium, plazma alapok. ;* Inerciális fúzió. ;* Töltött részecskék ütközésmentes mozgása mágneses térben.;* Termodinamikai egyensúly, ionizációs és sugárzási folyamatok plazmában. ;* Mágneses összetar | AD48: A fúziós modulon belül ez a bevezető tárgy, amit a hallgatók akár már BSc képzésben felvehetnek, és közérthetősége folytán mérnök hallgatóknak is ajánlott. A tárgyhoz eddig nem létezett használható jegyzet. | AF48: Fizikus, Energetikai mérnök | AG48: nukleáris szakirány | AH48: Bevezetés a fúziós plazmafizikába | AI48: 5 | AJ48: 2 | AK48: 3 | AL48: Fizikus | AN48: Bevezetés a fúziós plazmafizikába | AO48: 10 | AP48: 2 | AQ48: 3
A49: 50 | B49: BME NTI | C49: Pokol Gergő, Pusztai István (Chalmers, Göteborg) | D49: Collisional transport in magnetized plasmas | E49: FUSENET | F49: 2 | G49: 8 | H49: =2*AJ49+AP49 -> 8 | N49: 520,000 | O49: =11*30 -> 330 | P49: 2,016,000 | Q49: Moodle (SCORM) | R49: SCORM | S49: 40,000 | T49: 10 | U49: 20 | V49: 5 | W49: 10 | X49: 0 | Y49: 40 | AC49: A tantárgy a Per helander, Dieter J. Sigmar: Collisional transport in magnetized plasmas című könyv első 11 fejezetére épül. A bevezető fejezet után a könyv a fizika alaptörvényeiből kiindulva építi fel a mágnesezett forró plazmák ütközéses klasszikus és | AD49: A tananyag egy meglévő könyvre épülő e-learning kurzus lenne, ami akár autonóm tanulással is elsajátítható. Az egyetemi gyakorlatban ezt kontakt órák egészítik ki. | AF49: Fizikus | AG49: nukleáris szakirány | AH49: Collisional transport in magnetized plasmas | AI49: 4 | AJ49: 4 | AK49: 3 | AQ49: 3
A50: 51 | B50: BME NTI | C50: Pokol Gergő, Bencze Attila | D50: Fúziós nagyberendezések | E50: FUSENET | F50: 2 | G50: 6 | H50: =2*AJ50+AP50 -> 6 | N50: 540,000 | O50: 120 | P50: 2,012,000 | Q50: Wikimédia | R50: Wikimédia | S50: 200,000 | T50: 13 | U50: 200 | W50: 20 | X50: 20 | Y50: 10 | AC50: A tantárgy röviden ismerteti a mágneses összetartásra alapozott fúziós energiatermelés elvét és bemutatja a fúziós energiatermelés megvalósításához szükséges technológiai rendszereket. Ezután történelmi bevezető, és a mai - már üzemelő, és még épülő - leg | AF50: Fizikus | AG50: nukleáris szakirány | AH50: Fúziós nagyberendezések | AI50: 10 | AJ50: 3 | AK50: 3 | AQ50: 3
A51: 52 | B51: BME NTI | C51: Pór Gábor, Pokol Gergő, Kovácsik Ákos, Réfy Dániel Imre, Papp Gergely, Náfrádi Gábor | D51: Fúziós projektlabor | E51: FUSENET | F51: 6 | G51: 12 | H51: =2*AJ51+AP51 -> 12 | N51: 580,000 | O51: 60 | P51: 3,824,000 | Q51: Moodle (SCORM) | R51: SCORM | S51: 80,000 | T51: 5 | U51: 20 | V51: 5 | W51: 10 | X51: 5 | Y51: 40 | AC51: A kurzus hallgatói saját fejlesztésű mérőberendezéseket hoznak létre. Ennek során előbb megismerkednek az adott berendezésfajta irodalmával, közben a már elkészült kísérleti berendezéseken méréseket végeznek, illetve a GOLEM tokamakon (Prága) távméréseket | AD51: Jelenleg ilyen projektlabor nálunk (fúziós oktatási területen) nem fut (Amerikában a projektlabor igen elterjedt). A hallgatók a labor során sokkal jobban átlátják a fúziós berendezések egyes elemeinek működését, a mérések során fellépő zavaró effektusoka | AF51: Fizikus | AG51: nukleáris szakirány | AH51: tervezett: Fúziós projektlabor | AI51: 5 | AJ51: 6 | AK51: 2 | AQ51: 2
A52: 53 | B52: BME NTI | C52: Bencze Attila, Buday Csaba, Veres Gábor | D52: Az elméleti plazmafizika alapjai | E52: FUSENET | F52: 3 | G52: 6 | H52: =2*AJ52+AP52 -> 6 | N52: 242,000 | O52: 150 | P52: 1,816,000 | Q52: Wikimédia | R52: Wikimédia | S52: 200,000 | T52: 12 | U52: 12 | V52: 12 | X52: 12 | Y52: 5 | AC52: Statisztikus fizikai alapok, az eloszlásfüggvény. Az ütközési operátor: Boltzmann és Landau operátor. Boltzmann-egyenlet, Vlaszov-egyenlet. - Coulomb-ütközések, Debye-árnyékolás, plazmaparaméter. - A kinetikus egyenlet momentumai, a lezárás problematikáj | AD52: A témakörben egyetlen magyar nyelvű jegyzet érhető el. | AF52: Fizikus | AG52: kutatófizikus | AH52: Az elméleti plazmafizika alapjai | AI52: 7 | AJ52: 3 | AK52: 3 | AQ52: 3
A53: 54 | B53: BME NTI | C53: Bencze Attila, Buday Csaba, Veres Gábor | D53: Magnetohidrodinamika alacsonydimenziós rendszerekben | E53: FUSENET | F53: 3 | G53: 6 | H53: =2*AJ53+AP53 -> 6 | N53: 98,000 | O53: 150 | P53: 1,528,000 | Q53: Wikimédia | R53: Wikimédia | S53: 200,000 | T53: 12 | U53: 12 | V53: 12 | Y53: 5 | AC53: Az ideális MHD egyenletek rendszere, az elmélet érvényességi határai;Az egyenletek konzervatív alakja, megmaradási mennyiségek az ideális MHD-ban;Az MHD erőoperátor és tulajdonságai, spektrál analízis, az energia egyenlet;Peremfeltételek az MHD-ban;Hosszú | AD53: A témakörben nincs magyar nyelvű jegyzet. | AF53: Fizikus | AG53: kutatófizikus | AH53: Magnetohidrodinamika alacsony dimenziós rendszerekben | AI53: 7 | AJ53: 3 | AK53: 2 | AQ53: 2
A54: 55 | B54: BME NTI | C54: Kis Dániel Péter, Makai Mihály | D54: Global Reaktor Calculations | F54: 2 | G54: 8 | H54: =2*AJ54+AP54 -> 8 | N54: =V54*3000+W54*10000+Y54*10000+X54*8000 -> 124000 | O54: 250 | P54: =N54+F54*400000+H54*10000+G54*12000 -> 1,100,000 | Q54: LateX | R54: PDF | S54: 400000 | T54: 10 | U54: 100 | V54: 4 | W54: 3 | X54: 4 | Y54: 5 | AC54: Operation, planning, surveillance, and supervision of nuclear power plans demand an effective calculation model of the nuclear reactor core. A part of that model is a method for the solution of the diffusion equation in the entire reactor. The problem is | AD54: A Reaktorfizika elődás kibővített változata | AK54: 2 | AL54: Fizikus, Energetikai mérnök | AN54: Reaktorfizika, Reaktorfizika mérnököknek | AO54: 10 | AP54: 8 | AQ54: 2
A55: 56 | B55: BME NTI | C55: Makai Mihály, Pokol Gergő, Papp Gergely | D55: Bevezetés a transzportelméletbe | E55: FUSENET | F55: 3 | G55: 16 | H55: =2*AJ55+AP55 -> 16 | N55: =V55*4000+W55*10000+Y55*10000+X55*12000 -> 550,000 | O55: 400 | P55: =2*N55+F55*400000+H55*10000+G55*12000 -> 2,652,000 | Q55: Wikimédia | R55: Wikimédia | S55: 560,000 | T55: 29 | U55: 200 | V55: 5 | W55: 15 | X55: 15 | Y55: 20 | AC55: Kinetikus egyenlet, ütközési integrál. Entrópia, egyensúlyi állapot. Ideális gáz, van der Waals gáz, viriálegyütthatók. Debye-Hückel-elmélet. Transzport jelenségek, mérlegek. Boltzmann-egyenlet nemegyensúlyi állapotban. Fokker-Planck-egyenlet. Plazmatrans | AD55: Nincs ilyen magyar nyelvű anyag | AF55: Fizikus | AG55: nukleáris szakirány | AH55: Bevezetés a plazmatranszportba, Bevezetés a transzportelméletbe | AI55: 5 | AJ55: 8 | AK55: 2 | AQ55: 2
A56: 57 | B56: BME NTI | C56: Sáfrány Géza, Pesznyák Csilla | D56: Sugárbiológia | E56: Fizika | F56: 2 | G56: 36 | H56: =2*AJ56+AP56 -> 36 | N56: =V56*3000+W56*10000+Y56*10000+X56*8000 -> 582,000 | O56: 350 | P56: =N56+F56*400000+H56*10000 -> 1,742,000 | Q56: LaTex | R56: PDF | S56: 1,035,000 | T56: 23 | U56: 50 | W56: 2 | X56: 4 | Y56: 53 | AC56: A sugárbiológia elmélete és példatár a sugárbiológia alkalmazása a sugárterápiában témakörben. | AD56: Sugárbiológia tankönyv Magyarországon utoljára Várterész Vilmos írt 1963-ban a Medicina Kiadó közreműködésével. A Köteles György szerkesztésében megjelent Sugáregészségtan c. könyv néhány fejezetében ismerteti a sugárbiológia újabb felfedezéseit, de ez a | AF56: BME Fizikus, SE Klinikai sugárfizikus, Szent István Egyetem Állatorvosi szak, DOTE Klinikai sugárfizikus, PTE AOK Gyógyszerész, Miskolci Egyetem Orvosi laboratóriumi és képalkotó diagnosztikai analitikus, PTE Orvosi laboratóriumi és képalkotó diagnosztikai analitikus, Szegedi Tudományegytem Fizikus, SE Általános orvos | AH56: Sugárbiológia | AI56: 100 | AJ56: 18 | AK56: 1 | AQ56: 1
A57: 59 | B57: BME NTI | C57: Szabó Bálint | D57: Fizikusi elektronikai gyakorlatok | E57: nukaleáris | F57: 1 | G57: =2*AJ57+AP57 -> 2 | H57: =2*AJ57+AP57 -> 2 | N57: =V57*3000+W57*10000+Y57*10000+X57*8000 -> 236,000 | O57: 50 | P57: =N57+F57*400000+H57*10000+G57*12000 -> 680,000 | Q57: Wikimédia | R57: Wikimédia | S57: 80,000 | T57: 7 | U57: 100 | V57: 0 | W57: 5 | X57: 2 | Y57: 17 | AC57: Billenő áramkörök készítése, vizsgálata, jelterjedés vizsgálata; Műveleti erősítők alapkapcsolásainak építése, vizsgálata; nagyfrekvenciás működés, Miller-effektus vizsgálata; Schmitt trigger és relaxációs oszcillátor építése, vizsgálata; Koincidencia ára | AD57: Jelenleg nincs a fizikus alapképzésben multimédiás, elektronikát oktató tananyag. | AK57: 1 | AL57: Fizikus | AN57: Elektronika laboratórium | AO57: 50 | AP57: 2 | AQ57: 1
A58: 60 | B58: BME NTI | C58: Szalóki Imre | D58: Röntgen- és gammaspektrometria | E58: nukaleáris | F58: 1 | G58: =2*AJ58+AP58 -> 10 | H58: =2*AJ58+AP58 -> 10 | N58: =V58*3000+W58*10000+Y58*10000+X58*8000 -> 50,000 | O58: 130 | P58: =N58+F58*400000+H58*10000+G58*12000 -> 670,000 | Q58: LaTex | R58: PDF | S58: 200,000 | T58: 8 | U58: 50 | Y58: 5 | AC58: Röntgensugárzás tulajdonságai: Röntgensugárzás és anyag kölcsönhatásai: fotoelektromos jelenség, Compton-szórás, hatáskeresztmetszet, abszorpció, reflexió, polarizáció, Bragg-reflexió, röntgendiffrakció, fékezési és a karakterisztikus röntgensugárzás, ato | AD58: Jelenleg nincs ilyen terjedelmű, a témát teljesen felölelő áttekintő oktatási anyag a magyar felsőoktatásban. | AF58: Fizikus, Energetikai mérnök | AH58: Röntgen- és gamma spektrometriai módszerek | AI58: 8 | AJ58: 4 | AK58: 1 | AL58: Fizikus | AN58: Nukleáris méréstechnika | AO58: 15 | AP58: 2 | AQ58: 1
B59: BME NTI | C59: összesen | O59: =SUM(P44:P58) -> 26,414,000 | P59: 0
A60: =A58+1 -> 61 | B60: BME SZIT | C60: Györfi László | D60: Nemparaméteres statisztika | E60: számítástudomány | F60: 1 | G60: =2*AJ60+AP60 -> 15 | H60: 5 | N60: 120,000 | P60: 585,000 | Q60: ='[1]összes (2)'!P3 -> szöveg: LaTeX, videók: wikimédia | R60: ='[1]összes (2)'!Q3 -> .pdf + wikimédia (videók) | S60: ='[1]összes (2)'!R3 -> 400,000 | U60: ='[1]összes (2)'!S3 -> 0 | V60: ='[1]összes (2)'!T3 -> 19 | W60: ='[1]összes (2)'!U3 -> 200 | X60: ='[1]összes (2)'!V3 -> 0 | Y60: ='[1]összes (2)'!W3 -> 0 | Z60: ='[1]összes (2)'!X3 -> 10 | AA60: ='[1]összes (2)'!Y3 -> 0 | AC60: ='[1]összes (2)'!AA3 -> 0 | AD60: ='[1]összes (2)'!AB3 -> Tömegpont kinematikája;Tömegpont dinamikája;Mozgások leírása különböző vonatkoztatási rendszerekben;Munka és energia;Pontrendszerek mechanikája;Merev testek mozgása;Szilárd testek alakváltozása;Hidrosztatika;Felületi jelenségek;Folyadékok és gázok áramlása;Szabad rezgések;Kényszerrezgés, rezonancia;Rezgések összetevése és felbontása, csatolt rezgések;Hullámok;Energiaterjedés mechanikai hullámokban;Visszaverődés és törés;Interferencia, elhajlás, állóhullámok;Doppler-effektus;Hang és fény, hangszerek, ultrahang; | AF60: ='[1]összes (2)'!AD3 -> 0 | AG60: ='[1]összes (2)'!AE3 -> 0 | AH60: ='[1]összes (2)'!AF3 -> 0 | AI60: ='[1]összes (2)'!AG3 -> Atom és molekulafizika BMETE15MF02 | AJ60: ='[1]összes (2)'!AH3 -> 0 | AK60: 1 | AL60: ='[1]összes (2)'!AJ3 -> 1 | AM60: ='[1]összes (2)'!AK3 -> Fizika | AN60: ='[1]összes (2)'!AL3 -> 0 | AO60: ='[1]összes (2)'!AM3 -> Kísérleti fizika 1. BMETE13AF02 | AP60: ='[1]összes (2)'!AN3 -> 15 | AQ60: 1 | AR60: ='[1]összes (2)'!AP3 -> 1
A61: =A60+1 -> 62 | B61: BME SZIT | C61: Fleiner Tamás | D61: Számítástudomány alapjai | E61: számítástudomány | F61: 1 | G61: 15 | H61: =2*AJ61+AP61 -> 15 | N61: =V61*3000+W61*10000+Y61*10000+X61*8000 -> 2,036,000 | P61: 2,601,000 | Q61: ='[1]összes (2)'!P4 -> szöveg: LaTeX, videók: wikimédia | R61: ='[1]összes (2)'!Q4 -> .pdf + wikimédia (videók) | S61: ='[1]összes (2)'!R4 -> 500,000 | U61: ='[1]összes (2)'!S4 -> 0 | V61: ='[1]összes (2)'!T4 -> 12 | W61: ='[1]összes (2)'!U4 -> 200 | X61: ='[1]összes (2)'!V4 -> 0 | Y61: ='[1]összes (2)'!W4 -> 0 | Z61: ='[1]összes (2)'!X4 -> 10 | AA61: ='[1]összes (2)'!Y4 -> 0 | AC61: ='[1]összes (2)'!AA4 -> 0 | AD61: ='[1]összes (2)'!AB4 -> Elektrosztatika, stacionáris áramok, magnetosztatika, indukció, eltolási áram. Maxwell-egyenletek vákuumban és anyagban. Elektromágneses rezgések és hullámok. Fénytörés, fényvisszaverődés. Fényhullámok interferenciája és diffrakciója. A speciális relativitáselmélet. | AF61: ='[1]összes (2)'!AD4 -> 0 | AG61: ='[1]összes (2)'!AE4 -> 0 | AH61: ='[1]összes (2)'!AF4 -> 0 | AI61: ='[1]összes (2)'!AG4 -> 0 | AJ61: ='[1]összes (2)'!AH4 -> 0 | AK61: 1 | AL61: ='[1]összes (2)'!AJ4 -> 1 | AM61: ='[1]összes (2)'!AK4 -> Fizika | AN61: ='[1]összes (2)'!AL4 -> 0 | AO61: ='[1]összes (2)'!AM4 -> Kísérleti fizika 1. BMETE13AF02 | AP61: ='[1]összes (2)'!AN4 -> 15 | AQ61: 1 | AR61: ='[1]összes (2)'!AP4 -> 1
A62: =A61+1 -> 63 | B62: BME SZIT | C62: Bodon Ferenc, Búza Krisztián | D62: Adatbányászat | E62: számítástudomány | F62: 2 | G62: 15 | H62: =2*AJ62+AP62 -> 15 | N62: =V62*3000+W62*10000+Y62*10000+X62*8000 -> 2,075,000 | P62: 3,040,000 | Q62: ='[1]összes (2)'!P5 -> szöveg: LaTeX, videók: wikimédia | R62: ='[1]összes (2)'!Q5 -> .pdf + wikimédia (videó | S62: ='[1]összes (2)'!R5 -> 530,000 | U62: ='[1]összes (2)'!S5 -> 0 | V62: ='[1]összes (2)'!T5 -> 25 | W62: ='[1]összes (2)'!U5 -> 200 | X62: ='[1]összes (2)'!V5 -> 0 | Y62: ='[1]összes (2)'!W5 -> 0 | Z62: ='[1]összes (2)'!X5 -> 10 | AA62: ='[1]összes (2)'!Y5 -> 0 | AC62: ='[1]összes (2)'!AA5 -> 0 | AD62: ='[1]összes (2)'!AB5 -> Kinetikus gázelmélet: gáznyomás, hőmérséklet, belső energia, transzportfolyamatok, szabad úthossz közelítésben. Termodinamika: állapotjelzők, hőmérsékletskálák, I. és II. főtétel, entrópia, III. főtétel, termodinamikai potenciálok, a termodinamikai egyensúly feltételei, állapotegyenletek, Maxwell-relációk, Euler egyenletek, Gibbs-Duham reláció. Fázisátalakulások: Clausius-Clapeyron egyenlet, első- és másodrendű fázisátalakulások sajátságai, többkomponensű rendszerek, kémiai reakciók. A kvantummechanika alapjai: hőmérsékleti sugárzás, fotoeffektus, Compton effektus, atommodellek, anyaghullámok, Schrödinger egyenlet és stacionárius megoldásai, alkalmazások. | AF62: ='[1]összes (2)'!AD5 -> 0 | AG62: ='[1]összes (2)'!AE5 -> 0 | AH62: ='[1]összes (2)'!AF5 -> 0 | AI62: ='[1]összes (2)'!AG5 -> 0 | AJ62: ='[1]összes (2)'!AH5 -> 0 | AK62: 1 | AL62: ='[1]összes (2)'!AJ5 -> 1 | AM62: ='[1]összes (2)'!AK5 -> Fizika | AN62: ='[1]összes (2)'!AL5 -> 0 | AO62: ='[1]összes (2)'!AM5 -> Kísérleti fizika 1. BMETE13AF02 | AP62: ='[1]összes (2)'!AN5 -> 15 | AQ62: 1 | AR62: ='[1]összes (2)'!AP5 -> 1
A63: =A62+1 -> 64 | B63: BME SZIT | C63: Katona Gyula | D63: Algoritmus elmélet előadás | E63: számítástudomány | F63: 1 | G63: 60 | H63: =2*AJ63+AP63 -> 60 | N63: =V63*3000+W63*10000+Y63*10000+X63*8000 -> 495,000 | P63: 1,555,000 | Q63: ='[1]összes (2)'!P6 -> LaTex | R63: ='[1]összes (2)'!Q6 -> .pdf+wikimédia | S63: ='[1]összes (2)'!R6 -> 400,000 | U63: ='[1]összes (2)'!S6 -> 0 | V63: ='[1]összes (2)'!T6 -> 15 | W63: ='[1]összes (2)'!U6 -> 45 | X63: ='[1]összes (2)'!V6 -> 0 | Y63: ='[1]összes (2)'!W6 -> 0 | Z63: ='[1]összes (2)'!X6 -> 0 | AA63: ='[1]összes (2)'!Y6 -> 0 | AC63: ='[1]összes (2)'!AA6 -> 0 | AD63: ='[1]összes (2)'!AB6 -> Anyagi pont newtoni mechanikája, impulzus, impulzusmomentum, konzervativ erők, energia. Pontrendszerek mechanikája, a 10 mozgásintegrál. Kényszerek, általánosított koordináták, a mechanika elvei. Merev testek. Folytonos közegek. rugalmas testek mechanikája, a feszültségtenzor. Hullámegyenlet. Ideális és viszkózus folyadékok. Maxwell egyenletek. Szigetelők, vezetők (stacionárius) áramok, Sztatikus elektromos és mágneses tér. Skalár- és vektorpotenciál. Időfüggő elektromos és mágneses tér. Eletromágneses hullámok. Eletromágneses tér anyagi közegben. Az elektromágneses tér energiája és impulzusa. A speciális relativításelmélet alapjai. | AF63: ='[1]összes (2)'!AD6 -> 0 | AG63: ='[1]összes (2)'!AE6 -> 0 | AH63: ='[1]összes (2)'!AF6 -> 0 | AI63: ='[1]összes (2)'!AG6 -> 0 | AJ63: ='[1]összes (2)'!AH6 -> 0 | AK63: 1 | AL63: ='[1]összes (2)'!AJ6 -> 1 | AM63: ='[1]összes (2)'!AK6 -> Fizikus | AN63: ='[1]összes (2)'!AL6 -> 0 | AO63: ='[1]összes (2)'!AM6 -> Elméleti Fizika I. BMETE15AF06 | AP63: ='[1]összes (2)'!AN6 -> 60 | AQ63: 1 | AR63: ='[1]összes (2)'!AP6 -> 1
A64: =A63+1 -> 65 | B64: BME SZIT | C64: Katona Gyula | D64: Adatbázisok elmélete, előadás fóliák | E64: számítástudomány | F64: 1 | G64: 0 | H64: =2*AJ64+AP64 -> 0 | N64: =V64*3000+W64*10000+Y64*10000+X64*8000 -> 498,000 | P64: 898,000 | Q64: ='[1]összes (2)'!P7 -> LaTex | R64: ='[1]összes (2)'!Q7 -> .pdf+wikimédia | S64: ='[1]összes (2)'!R7 -> 400,000 | U64: ='[1]összes (2)'!S7 -> 0 | V64: ='[1]összes (2)'!T7 -> 16 | W64: ='[1]összes (2)'!U7 -> 45 | X64: ='[1]összes (2)'!V7 -> 0 | Y64: ='[1]összes (2)'!W7 -> 0 | Z64: ='[1]összes (2)'!X7 -> 0 | AA64: ='[1]összes (2)'!Y7 -> 0 | AC64: ='[1]összes (2)'!AA7 -> 0 | AD64: ='[1]összes (2)'!AB7 -> Mikro- és makroállapotok, zárt és kölcsönható rendszerek, egyensúly. Statisztikus fizikai entrópia, kapcsolat a termodinamikával. Különböző sokaságok és ekvivalenciájuk. Termodinamikai potenciálok, fluktuációk. Kölcsönható rendszerek, van der Waals egyenlet, fázisátalakulások, átlagtér elmélet. A kvantummechanika matematikai eszközei, Hilbert tér, operátorok. A mérés, sajátértékek, kommutátorok, határozatlansági relációk. Schrödinger egyenler, stacionárius eset, kötött és szabad állapotok. | AF64: ='[1]összes (2)'!AD7 -> 0 | AG64: ='[1]összes (2)'!AE7 -> 0 | AH64: ='[1]összes (2)'!AF7 -> 0 | AI64: ='[1]összes (2)'!AG7 -> 0 | AJ64: ='[1]összes (2)'!AH7 -> 0 | AK64: 1 | AL64: ='[1]összes (2)'!AJ7 -> 1 | AM64: ='[1]összes (2)'!AK7 -> Fizikus | AN64: ='[1]összes (2)'!AL7 -> 0 | AO64: ='[1]összes (2)'!AM7 -> Elméleti Fizika II. BMETE15AF07 | AP64: ='[1]összes (2)'!AN7 -> 0 | AQ64: 1 | AR64: ='[1]összes (2)'!AP7 -> 1
A65: =A64+1 -> 66 | B65: BME SZIT | C65: Friedl Katalin, Horváth Ádám, Mészégető Balázs | D65: Nyelvek és automaták | E65: számítástudomány | F65: 3 | G65: 0 | H65: =2*AJ65+AP65 -> 0 | N65: =V65*3000+W65*10000+Y65*10000+X65*8000 -> 336,000 | P65: 1,536,000 | Q65: ='[1]összes (2)'!P8 -> LaTex | R65: ='[1]összes (2)'!Q8 -> .pdf+wikimédia | S65: ='[1]összes (2)'!R8 -> 400,000 | U65: ='[1]összes (2)'!S8 -> 0 | V65: ='[1]összes (2)'!T8 -> 12 | W65: ='[1]összes (2)'!U8 -> 30 | X65: ='[1]összes (2)'!V8 -> 0 | Y65: ='[1]összes (2)'!W8 -> 0 | Z65: ='[1]összes (2)'!X8 -> 0 | AA65: ='[1]összes (2)'!Y8 -> 0 | AC65: ='[1]összes (2)'!AA8 -> 0 | AD65: ='[1]összes (2)'!AB8 -> Newton-axiómák, inerciarendszer. Mozgás gyorsuló rendszerben, tehetetlenségi erők. Mozgás egy dimenzióban, centrális erőtérben. Két-test probléma, bolygómozgás, részecskék szórása. Pontrendszerek mozgásegyenletei, és azok integráljai. Merev test mozgása, Euler-egyenletek. Virtuális munka elve, d'Alembert-elv. Kényszerfeltételek, Lagrange-féle első- és másodfajú egyenletek. Hamilton elv Kanonikus egyenletek, kanonikus transzformációk, Hamilton-Jacobi-egyenlet. Szimmetriák, Noether-tétel, mozgásállandók. Deformálható testek mechanikájának elemei. Relativisztikus mechanika. | AF65: ='[1]összes (2)'!AD8 -> 0 | AG65: ='[1]összes (2)'!AE8 -> 0 | AH65: ='[1]összes (2)'!AF8 -> 0 | AI65: ='[1]összes (2)'!AG8 -> 0 | AJ65: ='[1]összes (2)'!AH8 -> 0 | AK65: 1 | AL65: ='[1]összes (2)'!AJ8 -> 1 | AM65: ='[1]összes (2)'!AK8 -> Fizikus | AN65: ='[1]összes (2)'!AL8 -> 0 | AO65: ='[1]összes (2)'!AM8 -> Mechanika BMETE13AF12 | AP65: ='[1]összes (2)'!AN8 -> 0 | AQ65: 1 | AR65: ='[1]összes (2)'!AP8 -> 1
B66: BME SZIT | C66: összesen | O66: =SUM(P60:P65) -> 10,215,000 | P66: =N66+F66*400000+H66*10000+G66*1000 -> 0
A67: =A65+1 -> 67 | B67: ELTE FI | C67: Illy Judit | D67: Fizikai alapmérések laboratóriumi tananyag | E67: fizika | F67: 1 | G67: =2*AJ67+AP67 -> 0 | H67: =2*AJ67+AP67 -> 0 | N67: 250,000 | O67: 60 | P67: 650,000 | Q67: pdf | S67: =O67*2000 -> 120,000
A68: =A67+1 -> 68 | B68: ELTE FI | C68: Bagoly Zsolt | D68: Elektronika laboratórium tananyag | E68: fizika | F68: 1 | G68: 0 | H68: 0 | N68: 250,000 | O68: 120 | P68: =N68+F68*400000+H68*10000+G68*1000 -> 650,000 | Q68: pdf | S68: =O68*2000 -> 240,000
A69: =A68+1 -> 69 | B69: ELTE FI | C69: Havancsák Károly | D69: Klasszikus fizika laboratórium tananyag | E69: fizika | F69: 1 | G69: 0 | H69: 0 | N69: 250,000 | O69: 240 | P69: 650,000 | Q69: pdf | S69: 480,000
A70: 70 | B70: ELTE FI | C70: Kürti Jenő | D70: Modern fizika laboratórium tananyag | E70: fizika | F70: 1 | G70: 0 | H70: 0 | N70: 250,000 | O70: 263 | P70: 650,000 | Q70: pdf | S70: 526,000
A71: 71 | B71: ELTE FI | C71: Havancsák Károly, Csanád Máté | D71: Korszerű vizsgálati módszerek laboratórium tananyag | E71: fizika | F71: 2 | G71: 0 | H71: 0 | N71: 250,000 | O71: 250 | P71: 1,050,000 | Q71: pdf | S71: 500,000
A72: 72 | B72: ELTE FI | C72: Bagoly Zsolt | D72: Elektronika és méréstechnika tankönyv | E72: fizika | F72: 1 | G72: 0 | H72: 0 | N72: 250,000 | O72: 200 | P72: 650,000 | Q72: pdf | S72: 400,000
A73: 73 | B73: ELTE FI | C73: Havancsák Károly | D73: Fizikai mérési módszerek tankönyv | E73: fizika | F73: 1 | G73: 0 | H73: 0 | N73: 250,000 | O73: 250 | P73: 650,000 | Q73: pdf | S73: 500,000
A74: 74 | B74: ELTE FI | C74: Gálfi László | D74: Elektrodinamika tankönyv | E74: fizika | F74: 1 | G74: 0 | H74: 0 | N74: 250,000 | P74: 650,000 | Q74: pdf | S74: 0
A75: 75 | B75: ELTE FI | C75: Gálfi László | D75: Elméleti fizikai példatár | E75: fizika | F75: 1 | G75: 0 | H75: 0 | N75: 250,000 | P75: 650,000 | Q75: pdf | S75: 0
A76: 76 | B76: ELTE FI | C76: Derényi Imre | D76: A biofizika alapjai tankönyv | E76: fizika | F76: 2 | G76: 0 | H76: 0 | N76: 250,000 | O76: 160 | P76: 1,050,000 | Q76: pdf | S76: 320,000
A77: 77 | B77: ELTE FI | C77: Cserti József | D77: Nanotechnika "tudásbázis" | E77: fizika | F77: 1 | G77: 0 | H77: 0 | N77: 250,000 | P77: 650,000 | Q77: pdf | S77: 0
A78: 78 | B78: ELTE FI | C78: Bene Gyula | D78: Általános relativitáselmélet tankönyv | E78: fizika | F78: 1 | G78: 0 | H78: 0 | N78: 250,000 | O78: 130 | P78: 650,000 | Q78: html, pdf | S78: 260,000
A79: 79 | B79: ELTE FI | C79: Bene Gyula, Gruiz Márton | D79: Nemlineáris dinamika és káosz: szimulációs programok | E79: fizika | F79: 2 | G79: 0 | H79: 0 | N79: 250,000 | O79: 30 | P79: 1,050,000 | Q79: Turbo Pascal, Java, html | S79: 60,000
A80: 80 | B80: ELTE FI | C80: Szegedi Péter | D80: Fizikatörténeti szöveggyűjtemény | E80: fizika | F80: 1 | G80: 0 | H80: 0 | N80: 250,000 | O80: 320 | P80: 650,000 | Q80: pdf | S80: 640,000
B81: ELTE FI | C81: összesen | O81: =SUM(O67:P80) -> 10,302,023 | P81: 0
A82: =A80+1 -> 81 | B82: ELTE MI | C82: Bátkai András, Csomós Petra (Innsbruck), Farkas Bálint | D82: Operator semigroups for numerical methods (angol nyelven) | E82: natematika | F82: 3 | G82: =2*AJ82+AP82 -> 15 | H82: =2*AJ82+AP82 -> 15 | N82: =V82*3000+W82*10000+Y82*10000+X82*8000 -> 2,057,000 | P82: 3,422,000 | Q82: ='[1]összes (2)'!P3 -> szöveg: LaTeX, videók: wikimédia | R82: ='[1]összes (2)'!Q3 -> .pdf + wikimédia (videók) | S82: ='[1]összes (2)'!R3 -> 400,000 | U82: ='[1]összes (2)'!S3 -> 0 | V82: ='[1]összes (2)'!T3 -> 19 | W82: ='[1]összes (2)'!U3 -> 200 | X82: ='[1]összes (2)'!V3 -> 0 | Y82: ='[1]összes (2)'!W3 -> 0 | Z82: ='[1]összes (2)'!X3 -> 10 | AA82: ='[1]összes (2)'!Y3 -> 0 | AC82: ='[1]összes (2)'!AA3 -> 0 | AD82: ='[1]összes (2)'!AB3 -> Tömegpont kinematikája;Tömegpont dinamikája;Mozgások leírása különböző vonatkoztatási rendszerekben;Munka és energia;Pontrendszerek mechanikája;Merev testek mozgása;Szilárd testek alakváltozása;Hidrosztatika;Felületi jelenségek;Folyadékok és gázok áramlása;Szabad rezgések;Kényszerrezgés, rezonancia;Rezgések összetevése és felbontása, csatolt rezgések;Hullámok;Energiaterjedés mechanikai hullámokban;Visszaverődés és törés;Interferencia, elhajlás, állóhullámok;Doppler-effektus;Hang és fény, hangszerek, ultrahang; | AF82: ='[1]összes (2)'!AD3 -> 0 | AG82: ='[1]összes (2)'!AE3 -> 0 | AH82: ='[1]összes (2)'!AF3 -> 0 | AI82: ='[1]összes (2)'!AG3 -> Atom és molekulafizika BMETE15MF02 | AJ82: ='[1]összes (2)'!AH3 -> 0 | AK82: ='[1]összes (2)'!AI3 -> 3 | AL82: ='[1]összes (2)'!AJ3 -> 1 | AM82: ='[1]összes (2)'!AK3 -> Fizika | AN82: ='[1]összes (2)'!AL3 -> 0 | AO82: ='[1]összes (2)'!AM3 -> Kísérleti fizika 1. BMETE13AF02 | AP82: ='[1]összes (2)'!AN3 -> 15 | AQ82: ='[1]összes (2)'!AO3 -> 4 | AR82: ='[1]összes (2)'!AP3 -> 1
A83: =A82+1 -> 82 | B83: ELTE MI | C83: Fried Katalin, Hegyvári Norbert, Korándi József, Maus Pál, Török Judit, Vancsó Ödön | D83: Elemi matematika példatár | E83: natematika | F83: 6 | G83: 15 | H83: =2*AJ83+AP83 -> 15 | N83: 2,036,000 | P83: 4,601,000 | Q83: ='[1]összes (2)'!P4 -> szöveg: LaTeX, videók: wikimédia | R83: ='[1]összes (2)'!Q4 -> .pdf + wikimédia (videók) | S83: ='[1]összes (2)'!R4 -> 500,000 | U83: ='[1]összes (2)'!S4 -> 0 | V83: ='[1]összes (2)'!T4 -> 12 | W83: ='[1]összes (2)'!U4 -> 200 | X83: ='[1]összes (2)'!V4 -> 0 | Y83: ='[1]összes (2)'!W4 -> 0 | Z83: ='[1]összes (2)'!X4 -> 10 | AA83: ='[1]összes (2)'!Y4 -> 0 | AC83: ='[1]összes (2)'!AA4 -> 0 | AD83: ='[1]összes (2)'!AB4 -> Elektrosztatika, stacionáris áramok, magnetosztatika, indukció, eltolási áram. Maxwell-egyenletek vákuumban és anyagban. Elektromágneses rezgések és hullámok. Fénytörés, fényvisszaverődés. Fényhullámok interferenciája és diffrakciója. A speciális relativitáselmélet. | AF83: ='[1]összes (2)'!AD4 -> 0 | AG83: ='[1]összes (2)'!AE4 -> 0 | AH83: ='[1]összes (2)'!AF4 -> 0 | AI83: ='[1]összes (2)'!AG4 -> 0 | AJ83: ='[1]összes (2)'!AH4 -> 0 | AK83: ='[1]összes (2)'!AI4 -> 0 | AL83: ='[1]összes (2)'!AJ4 -> 1 | AM83: ='[1]összes (2)'!AK4 -> Fizika | AN83: ='[1]összes (2)'!AL4 -> 0 | AO83: ='[1]összes (2)'!AM4 -> Kísérleti fizika 1. BMETE13AF02 | AP83: ='[1]összes (2)'!AN4 -> 15 | AQ83: ='[1]összes (2)'!AO4 -> 4 | AR83: ='[1]összes (2)'!AP4 -> 1
A84: 83 | B84: ELTE MI | C84: Kristóf János | D84: Absztrakt harmonikus analízis | E84: natematika | F84: 1 | G84: 15 | H84: =2*AJ84+AP84 -> 15 | N84: 2,075,000 | P84: 2,640,000 | Q84: ='[1]összes (2)'!P5 -> szöveg: LaTeX, videók: wikimédia | R84: ='[1]összes (2)'!Q5 -> .pdf + wikimédia (videó | S84: ='[1]összes (2)'!R5 -> 530,000 | U84: ='[1]összes (2)'!S5 -> 0 | V84: ='[1]összes (2)'!T5 -> 25 | W84: ='[1]összes (2)'!U5 -> 200 | X84: ='[1]összes (2)'!V5 -> 0 | Y84: ='[1]összes (2)'!W5 -> 0 | Z84: ='[1]összes (2)'!X5 -> 10 | AA84: ='[1]összes (2)'!Y5 -> 0 | AC84: ='[1]összes (2)'!AA5 -> 0 | AD84: ='[1]összes (2)'!AB5 -> Kinetikus gázelmélet: gáznyomás, hőmérséklet, belső energia, transzportfolyamatok, szabad úthossz közelítésben. Termodinamika: állapotjelzők, hőmérsékletskálák, I. és II. főtétel, entrópia, III. főtétel, termodinamikai potenciálok, a termodinamikai egyensúly feltételei, állapotegyenletek, Maxwell-relációk, Euler egyenletek, Gibbs-Duham reláció. Fázisátalakulások: Clausius-Clapeyron egyenlet, első- és másodrendű fázisátalakulások sajátságai, többkomponensű rendszerek, kémiai reakciók. A kvantummechanika alapjai: hőmérsékleti sugárzás, fotoeffektus, Compton effektus, atommodellek, anyaghullámok, Schrödinger egyenlet és stacionárius megoldásai, alkalmazások. | AF84: ='[1]összes (2)'!AD5 -> 0 | AG84: ='[1]összes (2)'!AE5 -> 0 | AH84: ='[1]összes (2)'!AF5 -> 0 | AI84: ='[1]összes (2)'!AG5 -> 0 | AJ84: ='[1]összes (2)'!AH5 -> 0 | AK84: ='[1]összes (2)'!AI5 -> 0 | AL84: ='[1]összes (2)'!AJ5 -> 1 | AM84: ='[1]összes (2)'!AK5 -> Fizika | AN84: ='[1]összes (2)'!AL5 -> 0 | AO84: ='[1]összes (2)'!AM5 -> Kísérleti fizika 1. BMETE13AF02 | AP84: ='[1]összes (2)'!AN5 -> 15 | AQ84: ='[1]összes (2)'!AO5 -> 4 | AR84: ='[1]összes (2)'!AP5 -> 1
A85: 84 | B85: ELTE MI | C85: Faragó István | D85: Numerikus modellezés és közönséges differenciálegyenletek (angol nyelven) | E85: natematika | F85: 1 | G85: 60 | H85: 4 | N85: 495,000 | P85: 995,000 | Q85: ='[1]összes (2)'!P6 -> LaTex | R85: ='[1]összes (2)'!Q6 -> .pdf+wikimédia | S85: 130 | U85: ='[1]összes (2)'!S6 -> 0 | V85: ='[1]összes (2)'!T6 -> 15 | W85: ='[1]összes (2)'!U6 -> 45 | X85: ='[1]összes (2)'!V6 -> 0 | Y85: ='[1]összes (2)'!W6 -> 0 | Z85: ='[1]összes (2)'!X6 -> 0 | AA85: ='[1]összes (2)'!Y6 -> 0 | AC85: ='[1]összes (2)'!AA6 -> 0 | AD85: ='[1]összes (2)'!AB6 -> Anyagi pont newtoni mechanikája, impulzus, impulzusmomentum, konzervativ erők, energia. Pontrendszerek mechanikája, a 10 mozgásintegrál. Kényszerek, általánosított koordináták, a mechanika elvei. Merev testek. Folytonos közegek. rugalmas testek mechanikája, a feszültségtenzor. Hullámegyenlet. Ideális és viszkózus folyadékok. Maxwell egyenletek. Szigetelők, vezetők (stacionárius) áramok, Sztatikus elektromos és mágneses tér. Skalár- és vektorpotenciál. Időfüggő elektromos és mágneses tér. Eletromágneses hullámok. Eletromágneses tér anyagi közegben. Az elektromágneses tér energiája és impulzusa. A speciális relativításelmélet alapjai. | AF85: ='[1]összes (2)'!AD6 -> 0 | AG85: ='[1]összes (2)'!AE6 -> 0 | AH85: ='[1]összes (2)'!AF6 -> 0 | AI85: ='[1]összes (2)'!AG6 -> 0 | AJ85: ='[1]összes (2)'!AH6 -> 0 | AK85: ='[1]összes (2)'!AI6 -> 0 | AL85: ='[1]összes (2)'!AJ6 -> 1 | AM85: ='[1]összes (2)'!AK6 -> Fizikus | AN85: ='[1]összes (2)'!AL6 -> 0 | AO85: ='[1]összes (2)'!AM6 -> Elméleti Fizika I. BMETE15AF06 | AP85: ='[1]összes (2)'!AN6 -> 60 | AQ85: ='[1]összes (2)'!AO6 -> 6 | AR85: ='[1]összes (2)'!AP6 -> 1
A86: 85 | B86: ELTE MI | C86: Ambrus Gabriella, Munkácsy Katalin, Pálfalvi Józsefné, Szeredi Éva, Vásárhelyi Éva | D86: Matematika módszertani példatár | E86: natematika | F86: 5 | G86: 0 | H86: =2*AJ86+AP86 -> 0 | N86: 498,000 | P86: 2,498,000 | Q86: ='[1]összes (2)'!P7 -> LaTex | R86: ='[1]összes (2)'!Q7 -> .pdf+wikimédia | S86: ='[1]összes (2)'!R7 -> 400,000 | U86: ='[1]összes (2)'!S7 -> 0 | V86: ='[1]összes (2)'!T7 -> 16 | W86: ='[1]összes (2)'!U7 -> 45 | X86: ='[1]összes (2)'!V7 -> 0 | Y86: ='[1]összes (2)'!W7 -> 0 | Z86: ='[1]összes (2)'!X7 -> 0 | AA86: ='[1]összes (2)'!Y7 -> 0 | AC86: ='[1]összes (2)'!AA7 -> 0 | AD86: ='[1]összes (2)'!AB7 -> Mikro- és makroállapotok, zárt és kölcsönható rendszerek, egyensúly. Statisztikus fizikai entrópia, kapcsolat a termodinamikával. Különböző sokaságok és ekvivalenciájuk. Termodinamikai potenciálok, fluktuációk. Kölcsönható rendszerek, van der Waals egyenlet, fázisátalakulások, átlagtér elmélet. A kvantummechanika matematikai eszközei, Hilbert tér, operátorok. A mérés, sajátértékek, kommutátorok, határozatlansági relációk. Schrödinger egyenler, stacionárius eset, kötött és szabad állapotok. | AF86: ='[1]összes (2)'!AD7 -> 0 | AG86: ='[1]összes (2)'!AE7 -> 0 | AH86: ='[1]összes (2)'!AF7 -> 0 | AI86: ='[1]összes (2)'!AG7 -> 0 | AJ86: ='[1]összes (2)'!AH7 -> 0 | AK86: ='[1]összes (2)'!AI7 -> 0 | AL86: ='[1]összes (2)'!AJ7 -> 1 | AM86: ='[1]összes (2)'!AK7 -> Fizikus | AN86: ='[1]összes (2)'!AL7 -> 0 | AO86: ='[1]összes (2)'!AM7 -> Elméleti Fizika II. BMETE15AF07 | AP86: ='[1]összes (2)'!AN7 -> 0 | AQ86: ='[1]összes (2)'!AO7 -> 6 | AR86: ='[1]összes (2)'!AP7 -> 1
A87: 86 | B87: ELTE MI | C87: Sikolya Eszter | D87: Analízis jegyzet | E87: natematika | F87: 1 | G87: 0 | H87: 0 | N87: 336,000 | P87: 736,000 | Q87: ='[1]összes (2)'!P8 -> LaTex | R87: ='[1]összes (2)'!Q8 -> .pdf+wikimédia | S87: ='[1]összes (2)'!R8 -> 400,000 | U87: ='[1]összes (2)'!S8 -> 0 | V87: ='[1]összes (2)'!T8 -> 12 | W87: ='[1]összes (2)'!U8 -> 30 | X87: ='[1]összes (2)'!V8 -> 0 | Y87: ='[1]összes (2)'!W8 -> 0 | Z87: ='[1]összes (2)'!X8 -> 0 | AA87: ='[1]összes (2)'!Y8 -> 0 | AC87: ='[1]összes (2)'!AA8 -> 0 | AD87: ='[1]összes (2)'!AB8 -> Newton-axiómák, inerciarendszer. Mozgás gyorsuló rendszerben, tehetetlenségi erők. Mozgás egy dimenzióban, centrális erőtérben. Két-test probléma, bolygómozgás, részecskék szórása. Pontrendszerek mozgásegyenletei, és azok integráljai. Merev test mozgása, Euler-egyenletek. Virtuális munka elve, d'Alembert-elv. Kényszerfeltételek, Lagrange-féle első- és másodfajú egyenletek. Hamilton elv Kanonikus egyenletek, kanonikus transzformációk, Hamilton-Jacobi-egyenlet. Szimmetriák, Noether-tétel, mozgásállandók. Deformálható testek mechanikájának elemei. Relativisztikus mechanika. | AF87: ='[1]összes (2)'!AD8 -> 0 | AG87: ='[1]összes (2)'!AE8 -> 0 | AH87: ='[1]összes (2)'!AF8 -> 0 | AI87: ='[1]összes (2)'!AG8 -> 0 | AJ87: ='[1]összes (2)'!AH8 -> 0 | AK87: ='[1]összes (2)'!AI8 -> 0 | AL87: ='[1]összes (2)'!AJ8 -> 1 | AM87: ='[1]összes (2)'!AK8 -> Fizikus | AN87: ='[1]összes (2)'!AL8 -> 0 | AO87: ='[1]összes (2)'!AM8 -> Mechanika BMETE13AF12 | AP87: ='[1]összes (2)'!AN8 -> 0 | AQ87: ='[1]összes (2)'!AO8 -> 4 | AR87: ='[1]összes (2)'!AP8 -> 1
A88: 87 | B88: ELTE MI | C88: Kristóf János | D88: Topologikus vektorterek és normált algebrák | E88: natematika | F88: 1 | G88: 0 | H88: 0 | N88: 542,000 | P88: 942,000 | Q88: ='[1]összes (2)'!P9 -> LaTex | R88: ='[1]összes (2)'!Q9 -> .pdf+wikimédia | S88: ='[1]összes (2)'!R9 -> 400,000 | U88: 5 | V88: ='[1]összes (2)'!T9 -> 14 | W88: ='[1]összes (2)'!U9 -> 50 | X88: ='[1]összes (2)'!V9 -> 0 | Y88: ='[1]összes (2)'!W9 -> 0 | Z88: ='[1]összes (2)'!X9 -> 0 | AA88: ='[1]összes (2)'!Y9 -> 0 | AC88: ='[1]összes (2)'!AA9 -> 0 | AD88: ='[1]összes (2)'!AB9 -> Bevezetés, történeti áttekintés, matematiaki alapfogalmak. Töltéseloszlások elektrosztatikája, elektrosztatikus tér energiája. Poisson egyenlet határfeltételekkel, kapacitás, tükörtöltések módszere. Görbevonalú koordinátarendszerek, gömbi- és hengerkoordináták. Multipólus kifejtés. Elektrosztatika anyag jelenlétében. Mágneses alapjelenségek, árameloszlás mágneses tere. Mágnesség anyag jelenlétében. Időfüggés az elektrodinamikában, indukció. Jelenségek vezetőkben, távíró egyenlet, kvázistacionárius közelítés, skin effektus. Elektromágneses energia és impulzus mérlegegyenlete. Homogén Maxwell-egyenletek megoldása, síkhullámok, csoport- és fázissebesség. Frekvenciafüggő permittivitás, törésmutató, abszorpció. Elektromágneses hullámterjedés határfeltételekkel, törés, hullámvezető. Inhomogén Maxwell-egyenletek megoldása, retardált és avanzsált Green-függvények. Dipól- és multipól sugárzások. Lienard-Wiechert potenciálok. Relativisztikus elektrodinamika. Relativisztikus Larmor-képlet, sugárzás szögeloszlása, spektruma, szinkrotronsugárzás. Elektromágneses hullámok szórása. Cherenkov- és átmeneti sugárzás. | AF88: ='[1]összes (2)'!AD9 -> 0 | AG88: ='[1]összes (2)'!AE9 -> 0 | AH88: ='[1]összes (2)'!AF9 -> 0 | AI88: ='[1]összes (2)'!AG9 -> 0 | AJ88: ='[1]összes (2)'!AH9 -> 0 | AK88: ='[1]összes (2)'!AI9 -> 0 | AL88: ='[1]összes (2)'!AJ9 -> 1 | AM88: ='[1]összes (2)'!AK9 -> Fizikus | AN88: ='[1]összes (2)'!AL9 -> 0 | AO88: ='[1]összes (2)'!AM9 -> Elektrodinamika és relativitáselmélet BMETE13AF15 | AP88: ='[1]összes (2)'!AN9 -> 0 | AQ88: ='[1]összes (2)'!AO9 -> 4 | AR88: ='[1]összes (2)'!AP9 -> 1
A89: 88 | B89: ELTE MI | C89: Prőhle Tamás Zempléni András | D89: Többdimenziós statisztika számítógépes módszerei | E89: natematika | F89: 2 | G89: 0 | H89: 0 | N89: 527,000 | P89: 1,327,000 | Q89: ='[1]összes (2)'!P10 -> LaTex | R89: ='[1]összes (2)'!Q10 -> .pdf+Wikimédia | S89: ='[1]összes (2)'!R10 -> 400,000 | U89: ='[1]összes (2)'!S10 -> 0 | V89: ='[1]összes (2)'!T10 -> 9 | W89: ='[1]összes (2)'!U10 -> 50 | X89: ='[1]összes (2)'!V10 -> 0 | Y89: ='[1]összes (2)'!W10 -> 0 | Z89: ='[1]összes (2)'!X10 -> 0 | AA89: ='[1]összes (2)'!Y10 -> 0 | AC89: ='[1]összes (2)'!AA10 -> 0 | AD89: ='[1]összes (2)'!AB10 -> A klasszikus fizika érvényességének határai. Hullámmechanika. A kvantummechanika matematikai és fizikai alapjai. A fizikai mennyiségeket reprezentáló operátorok sajátértékei és sajátfüggvényei. Kötött állapotok. Hidrogénatom. Spin. Szórási állapotok. Mozgás elektromágneses térben. Relativisztikus kvantummechanika, Dirac egyenlet. Reprezentációelmélet | AF89: ='[1]összes (2)'!AD10 -> 0 | AG89: ='[1]összes (2)'!AE10 -> 0 | AH89: ='[1]összes (2)'!AF10 -> 0 | AI89: ='[1]összes (2)'!AG10 -> 0 | AJ89: ='[1]összes (2)'!AH10 -> 0 | AK89: ='[1]összes (2)'!AI10 -> 0 | AL89: ='[1]összes (2)'!AJ10 -> 1 | AM89: ='[1]összes (2)'!AK10 -> Fizikus | AN89: ='[1]összes (2)'!AL10 -> 0 | AO89: ='[1]összes (2)'!AM10 -> Kvantummechanika BMETE15AF00 | AP89: ='[1]összes (2)'!AN10 -> 0 | AQ89: ='[1]összes (2)'!AO10 -> 5 | AR89: ='[1]összes (2)'!AP10 -> 1
A90: 89 | B90: ELTE MI | C90: Verhóczki László | D90: Klasszikus differenciálgeometria | E90: natematika | F90: 1 | G90: 0 | H90: 0 | N90: 345,000 | P90: 745,000 | Q90: ='[1]összes (2)'!P11 -> LaTex | R90: ='[1]összes (2)'!Q11 -> .pdf+wikimédia | S90: ='[1]összes (2)'!R11 -> 400,000 | U90: ='[1]összes (2)'!S11 -> 0 | V90: ='[1]összes (2)'!T11 -> 15 | W90: ='[1]összes (2)'!U11 -> 30 | X90: ='[1]összes (2)'!V11 -> 0 | Y90: ='[1]összes (2)'!W11 -> 0 | Z90: ='[1]összes (2)'!X11 -> 0 | AA90: ='[1]összes (2)'!Y11 -> 0 | AC90: ='[1]összes (2)'!AA11 -> 0 | AD90: ='[1]összes (2)'!AB11 -> A statisztikus fizika célkitűzése. Időskálák, egyensúly, irreverzibilitás. Mikro- és makroállapotok, normál rendszerek. Liouville- és Neumann egyenlet. Egyenlő valószínűségek elve, entrópia, kapcsolat a termodinamikával, sokaságok, ekvivalenciájuk. Termodinamikai potenciálok, fluktuációk, korrelációk. Ideális gázok, kvantumstatisztikák, klasszikus átmenet, Degenerált kvantumgázok, Bose-Einstein kondenzáció, fotongáz. Kvázirészecskék, fononok. szuperfolyékonyság, a Fermi-folyadék elmélet alapjai. Árnyékolás. Viriál sofejtés. Fázisátalakulások, van der Waals, Weiss, Landau elméletek. A fluktuációk szerepe, skálázás, univerzalitás, a renormálási csoport transzformáció alapgondolata. Időfüggő egyensúlyi korrelációk. Lineáris transzport, kereszteffektusok, lineáris válasz, fluktuáció,disszipáció tétel. Brown-mozgás, diffúzió, Langevin-egyenlet, Fokker-Planck egyenlet, Vezéregyenlet, Boltzmann-egyenlet, H-tétel, irreverzibilitási paradoxonok és feloldásuk. | AF90: ='[1]összes (2)'!AD11 -> 0 | AG90: ='[1]összes (2)'!AE11 -> 0 | AH90: ='[1]összes (2)'!AF11 -> 0 | AI90: ='[1]összes (2)'!AG11 -> 0 | AJ90: ='[1]összes (2)'!AH11 -> 0 | AK90: ='[1]összes (2)'!AI11 -> 0 | AL90: ='[1]összes (2)'!AJ11 -> 1 | AM90: ='[1]összes (2)'!AK11 -> Fizikus | AN90: ='[1]összes (2)'!AL11 -> 0 | AO90: ='[1]összes (2)'!AM11 -> Statisztikus Fizika BMETE15AF04 | AP90: ='[1]összes (2)'!AN11 -> 0 | AQ90: ='[1]összes (2)'!AO11 -> 5 | AR90: ='[1]összes (2)'!AP11 -> 1
A91: 90 | B91: ELTE MI | C91: Simon Péter | D91: Differenciálegyenletek és dinamikai rendszerek (angol nyelven | E91: natematika | F91: 1 | G91: 0 | H91: 0 | N91: 530,000 | P91: 930,000 | Q91: ='[1]összes (2)'!P12 -> Wikimédia | R91: ='[1]összes (2)'!Q12 -> Wikimédia | S91: ='[1]összes (2)'!R12 -> 120,000 | U91: ='[1]összes (2)'!S12 -> 0 | V91: ='[1]összes (2)'!T12 -> 10 | W91: ='[1]összes (2)'!U12 -> 50 | X91: ='[1]összes (2)'!V12 -> 0 | Y91: ='[1]összes (2)'!W12 -> 0 | Z91: ='[1]összes (2)'!X12 -> 0 | AA91: ='[1]összes (2)'!Y12 -> 0 | AC91: ='[1]összes (2)'!AA12 -> 0 | AD91: ='[1]összes (2)'!AB12 -> Szilárd testek, kristályok szimmetriái, Szerkezetmeghatározás, Szóráskísérletek, Rácsrezgések, Szilárd testek fajhője, Elektronok ; kvantummechanikai leírása: közel szabad elektron modell, sávszerkezet; szoros kötésű közelítés, Elektron transzport - Drude modell | AF91: ='[1]összes (2)'!AD12 -> 0 | AG91: ='[1]összes (2)'!AE12 -> 0 | AH91: ='[1]összes (2)'!AF12 -> 0 | AI91: ='[1]összes (2)'!AG12 -> 0 | AJ91: ='[1]összes (2)'!AH12 -> 0 | AK91: ='[1]összes (2)'!AI12 -> 0 | AL91: ='[1]összes (2)'!AJ12 -> 1 | AM91: ='[1]összes (2)'!AK12 -> Fizika | AN91: ='[1]összes (2)'!AL12 -> 0 | AO91: ='[1]összes (2)'!AM12 -> Szilárdtestfizika gyakorlat BMETE11AF06 | AP91: ='[1]összes (2)'!AN12 -> 0 | AQ91: ='[1]összes (2)'!AO12 -> 2 | AR91: ='[1]összes (2)'!AP12 -> 1
A92: 91 | B92: ELTE MI | C92: Tóth János-Simon L. Péter-Csikja Rudolf | D92: Differenciálegyenletek. Feladatgyűjtemény | E92: natematika | F92: 3 | G92: 0 | H92: 0 | N92: 2,162,000 | P92: 3,362,000 | Q92: ='[1]összes (2)'!P13 -> LaTex | R92: ='[1]összes (2)'!Q13 -> PDF | S92: 140 | U92: ='[1]összes (2)'!S13 -> 0 | V92: ='[1]összes (2)'!T13 -> 2 | W92: ='[1]összes (2)'!U13 -> 200 | X92: 7 | Y92: ='[1]összes (2)'!W13 -> 10 | Z92: ='[1]összes (2)'!X13 -> 0 | AA92: ='[1]összes (2)'!Y13 -> 0 | AC92: ='[1]összes (2)'!AA13 -> 0 | AD92: ='[1]összes (2)'!AB13 -> Elektromosságtan Az elektrosztatika alaptörvényei, Gauss törvény Elektromos tér szigetelőkben és vezetőkben Elektromos potenciál és feszültség Kondenzátorok, kapacitás, az elektromos tér energiája Stacionárius áramok, Ohm törvény Egyenáramú áramkörök, Kirchoff-törvények Mágneses tér, Lorentz erő Biot-Savart-törvény, áram mágneses tere Mágneses fluxus, Ampere törvénye Lenz-törvény, indukció, váltóáramú áramkörök Maxwell egyenletek rendszere, elektromágneses hullámok Optika Geometriai optika Hullámoptika | AF92: ='[1]összes (2)'!AD13 -> 0 | AG92: ='[1]összes (2)'!AE13 -> 0 | AH92: ='[1]összes (2)'!AF13 -> 0 | AI92: ='[1]összes (2)'!AG13 -> 0 | AJ92: ='[1]összes (2)'!AH13 -> 0 | AK92: ='[1]összes (2)'!AI13 -> 0 | AL92: ='[1]összes (2)'!AJ13 -> 1 | AM92: ='[1]összes (2)'!AK13 -> Gépészmérnöki, Mechatronikai, Terméktervezői szakok Bsc Energetikai mérnök szak Bsc Közlekedésmérnöki szak Bsc Járműgépész szak | AN92: ='[1]összes (2)'!AL13 -> 0 | AO92: ='[1]összes (2)'!AM13 -> Fizika2 BMETE11AX02 Fizika 2 BMETE11AX04, Fizika 2 BMETE11AX04 Fizika A2 BMETE15AX02, Fizika A2 BMETE15AX02 Fizika A2E BMETE15AX15 Fizika A2K BMETE15AX09 Fizika A2J BMETE15AX16 | AP92: ='[1]összes (2)'!AN13 -> 0 | AQ92: ='[1]összes (2)'!AO13 -> 0 | AR92: ='[1]összes (2)'!AP13 -> 1
B93: ELTE MI | C93: összesen | O93: =SUM(P82:P92) -> 22,198,000
C94: Mindösszesen | P94: =SUM(P3:P93) -> 164,387,000
P96: 15,000,000
P97: 30,000,000
P98: 5,000,000
P99: =SUM(P94:P98) -> 214,387,000
P120: 5
